Workbook

Sheet Max Distance
P1: =OFFSET(Language!$C$2,MATCH("Title",Language!$C:$C,0)-2,Language!$B$1)&" - "&OFFSET(Language!$B$26,Language!$B$26,0) -> AVIOTEC - Distance calculation tool V2.6 - Metric | AE1: 0.3048 | AH1: FLAME | AI1: SMOKE
C4: =OFFSET(Language!$C$2,MATCH("Step1",Language!$C:$C,0)-2,Language!$B$1) -> Step 1: Define installation and minimum flame and smoke size | S4: =OFFSET(Language!$C$2,MATCH("Step2",Language!$C:$C,0)-2,Language!$B$1) -> Step 2: Adjust minimum detection size of the algorithm | AB4: Opening | AC4: Flame | AD4: Smoke
AB5: 45 | AC5: =7/640 -> 0.0109375 | AD5: =ROUND(10/640,4) -> 0.0156 | AE5: dmin | AF5: =(F8*IF(Language!B26=1,1,0.3048))/TAN((Hidden!$D$4/180)*PI()) -> 5.212902993 | AH5: 1 (Small) | AI5: 1 (Small)
C6: =OFFSET(Language!$C$2,MATCH("Inst",Language!$C:$C,0)-2,Language!$B$1) -> Installation | J6: =OFFSET(Language!$C$2,MATCH("Detec",Language!$C:$C,0)-2,Language!$B$1) -> Fire detection | U6: =OFFSET(Language!$C$2,MATCH("Setting",Language!$C:$C,0)-2,Language!$B$1) -> Settings Fire Detection | AB6: 50 | AC6: =8/640 -> 0.0125 | AD6: =ROUND(11/640,4) -> 0.0172 | AE6: dmax Flame, sicht | AF6: =((L8*IF(Language!B26=1,1,0.3048/12))/AF66)/(2*(F$9/360)*PI())*AG58 -> 23.02017097 | AH6: 2 | AI6: 2
AB7: 55 | AC7: =9/640 -> 0.0140625 | AD7: =ROUND(12/640,4) -> 0.0188 | AE7: dmax, Flame | AF7: =IFERROR(SQRT((AF6^2)-((F8*IF(Language!B26=1,1,0.3048))^2)),0) -> 22.66998593 | AH7: 3 | AI7: 3
C8: =OFFSET(Language!$C$2,MATCH("Mheight",Language!$C:$C,0)-2,Language!$B$1) -> Camera Mounting Height | F8: 4.000001152 | G8: =IF(Language!$B$26=2,OFFSET(Language!$C$2,MATCH("Ein_ft",Language!$C:$C,0)-2,Language!$B$1),OFFSET(Language!$C$2,MATCH("Ein_m",Language!$C:$C,0)-2,Language!$B$1)) -> m | J8: =OFFSET(Language!$C$2,MATCH("FlameW",Language!$C:$C,0)-2,Language!$B$1) -> Minimum flame width | L8: 0.5 | M8: =IF(Language!$B$26=2,OFFSET(Language!$C$2,MATCH("Ein_in",Language!$C:$C,0)-2,Language!$B$1),OFFSET(Language!$C$2,MATCH("Ein_m",Language!$C:$C,0)-2,Language!$B$1)) -> m | U8: =OFFSET(Language!$C$2,MATCH("FlameS",Language!$C:$C,0)-2,Language!$B$1) -> Flame Min. Size Settings | AB8: 60 | AC8: =10/640 -> 0.015625 | AD8: =ROUND(13/640,4) -> 0.0203 | AE8: dmax Smoke sicht | AF8: =(L9/AG66*IF(Language!B26=1,1,0.3048/12))/(2*(F$9/360)*PI())*AG58 -> 23.02017097 | AH8: 4 (Medium) | AI8: 4
C9: =OFFSET(Language!$C$2,MATCH("Oangle",Language!$C:$C,0)-2,Language!$B$1) -> Lens opening angle | F9: 90 | G9: ° | J9: =OFFSET(Language!$C$2,MATCH("SmokeW",Language!$C:$C,0)-2,Language!$B$1) -> Minimum smoke width | L9: 0.75 | M9: =IF(Language!$B$26=2,OFFSET(Language!$C$2,MATCH("Ein_in",Language!$C:$C,0)-2,Language!$B$1),OFFSET(Language!$C$2,MATCH("Ein_m",Language!$C:$C,0)-2,Language!$B$1)) -> m | U9: =OFFSET(Language!$C$2,MATCH("SmokeS",Language!$C:$C,0)-2,Language!$B$1) -> Smoke Min. Size Settings | AB9: 65 | AC9: =11/640 -> 0.0171875 | AD9: =ROUND(14/640,4) -> 0.0219 | AE9: dmax, Smoke | AF9: =IFERROR(SQRT((AF8^2)-((F8*IF(Language!B26=1,1,0.3048))^2)),0) -> 22.66998593 | AH9: 5 | AI9: 5
AB10: 70 | AC10: =12/640 -> 0.01875 | AD10: =ROUND(15/640,4) -> 0.0234 | AH10: 6 | AI10: 6 (Medium)
AA11: =OFFSET(Language!$C$2,MATCH("Help",Language!$C:$C,0)-2,Language!$B$1) -> Help | AB11: 75 | AC11: =13/640 -> 0.0203125 | AD11: =ROUND(16/640,4) -> 0.025 | AH11: 7 (Large) | AI11: 7
AB12: 80 | AD12: =ROUND(17/640,4) -> 0.0266 | AF12: =OR(W8=AH5,AC5) -> TRUE | AI12: 8
AB13: 85 | AD13: =ROUND(18/640,4) -> 0.0281 | AI13: 9
D14: =OFFSET(Language!$C$2,MATCH("FlameD",Language!$C:$C,0)-2,Language!$B$1) -> Flame detection | AB14: 90 | AD14: =ROUND(19/640,4) -> 0.0297 | AH14: =IF(W8="Small",7,IF(W8="Medium",10,13)) -> 13 | AI14: 10
D15: =OFFSET(Language!$C$2,MATCH("SmokeD",Language!$C:$C,0)-2,Language!$B$1)&" "&OFFSET(Language!$C$2,MATCH("seeat",Language!$C:$C,0)-2,Language!$B$1)&" 47" -> Smoke detection see below at line 47 | AB15: 95 | AD15: =ROUND(20/640,4) -> 0.0313 | AH15: =IF(W9="Small",7,IF(W9="Medium",10,13)) -> 13 | AI15: 11 (Large)
... 16 more rows

Sheet Config
A1: =IF(Language!$B$26=1,1,3.2808) -> 1 | B1: =OFFSET(Language!$C$2,MATCH("Const",Language!$C:$C,0)-2,Language!$B$1) -> Constants | AE1: =OFFSET(Language!$C$2,MATCH("Color",Language!$C:$C,0)-2,Language!$B$1) -> Color indication | AO1: =OFFSET(Language!$C$2,MATCH("Flame",Language!$C:$C,0)-2,Language!$B$1) -> Flame | AQ1: =OFFSET(Language!$C$2,MATCH("Smoke",Language!$C:$C,0)-2,Language!$B$1) -> Smoke | DJ1: =Hidden!D28 -> 4 | DK1: =Hidden!E28 -> 6 | DL1: =C7 -> Yes | DM1: =C13 -> 45 | DN1: =C12 -> 16 | DO1: =C11 -> 4 | DP1: =C10 -> 90 | DQ1: x1 | DR1: =ROUND(IF($C$8=$C$3,$C$8+1,$C$8)/$A$1,0)*$A$1 -> 0 | DS1: =ROUND(IF($C$9=$C$4,$C$9+1,$C$9)/$A$1,0)*$A$1 -> 0 | DT1: (1) | DW1: =OFFSET(Language!$C$2,MATCH("Yes",Language!$C:$C,0)-2,Language!$B$1) -> Yes | EC1: =ROUND(500*IF(Language!B26=1,1,3.28084),0) -> 500
F2: =OFFSET(Language!$C$2,MATCH("MinDSize",Language!$C:$C,0)-2,Language!$B$1)&IF(Language!$B$26=1," [cm]"," [in]") -> Minimum detectable size [cm] | AE2: =OFFSET(Language!$C$2,MATCH("FDnotP",Language!$C:$C,0)-2,Language!$B$1) -> Fire Detection not possible | AO2: - | AQ2: - | AS2: =OFFSET(Language!$C$2,MATCH("Values",Language!$C:$C,0)-2,Language!$B$1) -> values can be changed | AU2: =OFFSET(Language!$C$2,MATCH("Help",Language!$C:$C,0)-2,Language!$B$1) -> Help | BL2: ± | DJ2: =Hidden!D38 -> 4 | DK2: =Hidden!E38 -> 6 | DL2: =O7 -> No | DM2: =O13 -> -45 | DN2: =O12 -> 18 | DO2: =O11 -> 4 | DP2: =O10 -> 45 | DQ2: x2 | DR2: =ROUND(IF($O$8=$C$3,$O$8+1,$O$8)/$A$1,0)*$A$1 -> 20 | DS2: =ROUND(IF($O$9=$C$4,$O$9+1,$O$9)/$A$1,0)*$A$1 -> 0 | DT2: (2) | DW2: =OFFSET(Language!$C$2,MATCH("No",Language!$C:$C,0)-2,Language!$B$1) -> No | EC2: =ROUND(100*IF(Language!B26=1,1,3.28084),0) -> 100
B3: =OFFSET(Language!$C$2,MATCH("Width",Language!$C:$C,0)-2,Language!$B$1)&IF(Language!$B$26=1," m"," ft") -> Room Width m | C3: 100 | AE3: =OFFSET(Language!$C$2,MATCH("wspec",Language!$C:$C,0)-2,Language!$B$1)&IF(Language!$B$26=1," [cm]"," [in]") -> Within specified size [cm] | AO3: 30.0001134 | AQ3: 50.000243 | DJ3: =Hidden!D48 -> 4 | DK3: =Hidden!E48 -> 6 | DL3: =AB7 -> No | DM3: =AB13 -> -45 | DN3: =AB12 -> 18 | DO3: =AB11 -> 5 | DP3: =AB10 -> 45 | DQ3: x3 | DR3: =ROUND(IF($AB$8=$C$3,$AB$8+1,$AB$8)/$A$1,0)*$A$1 -> 30 | DS3: =ROUND(IF($AB$9=$C$4,$AB$9+1,$AB$9)/$A$1,0)*$A$1 -> 0 | DT3: (3)
B4: =OFFSET(Language!$C$2,MATCH("Length",Language!$C:$C,0)-2,Language!$B$1)&IF(Language!$B$26=1," m"," ft") -> Room Length m | C4: 100 | AE4: =OFFSET(Language!$C$2,MATCH("wspec",Language!$C:$C,0)-2,Language!$B$1)&IF(Language!$B$26=1," [cm]"," [in]") -> Within specified size [cm] | AO4: 50.000216 | AQ4: 75.0003645 | DJ4: =Hidden!D58 -> 4 | DK4: =Hidden!E58 -> 6 | DL4: =AO7 -> No | DM4: =AO13 -> -45 | DN4: =AO12 -> 18 | DO4: =AO11 -> 4 | DP4: =AO10 -> 45 | DQ4: x4 | DR4: =ROUND(IF($AO$8=$C$3,$AO$8+1,$AO$8)/$A$1,0)*$A$1 -> 40 | DS4: =ROUND(IF($AO$9=$C$4,$AO$9+1,$AO$9)/$A$1,0)*$A$1 -> 0 | DT4: (4) | DW4: =IF(Language!$B$26=1,100,328) -> 100
AE5: =OFFSET(Language!$C$2,MATCH("ospec",Language!$C:$C,0)-2,Language!$B$1)&IF(Language!$B$26=1," [cm]"," [in]") -> Larger than specified size [cm] | AO5: 50.000243 | AQ5: 75.0003645 | DJ5: =Hidden!D68 -> 4 | DK5: =Hidden!E68 -> 6 | DL5: =BB7 -> No | DM5: =BB13 -> -45 | DN5: =BB12 -> 18 | DO5: =BB11 -> 4 | DP5: =BB10 -> 45 | DQ5: x5 | DR5: =ROUND(IF($BB$8=$C$3,$BB$8+1,$BB$8)/$A$1,0)*$A$1 -> 50 | DS5: =ROUND(IF($BB$9=$C$4,$BB$9+1,$BB$9)/$A$1,0)*$A$1 -> 0 | DT5: (5)
B6: =OFFSET(Language!$C$2,MATCH("Cam",Language!$C:$C,0)-2,Language!$B$1)&1 -> Camera1 | E6: =OFFSET(Language!$C$2,MATCH("Cam",Language!$C:$C,0)-2,Language!$B$1)&2 -> Camera2 | R6: =OFFSET(Language!$C$2,MATCH("Cam",Language!$C:$C,0)-2,Language!$B$1)&3 -> Camera3 | AE6: =OFFSET(Language!$C$2,MATCH("Cam",Language!$C:$C,0)-2,Language!$B$1)&4 -> Camera4 | AR6: =OFFSET(Language!$C$2,MATCH("Cam",Language!$C:$C,0)-2,Language!$B$1)&5 -> Camera5 | BE6: =OFFSET(Language!$C$2,MATCH("Cam",Language!$C:$C,0)-2,Language!$B$1)&6 -> Camera6 | BR6: =OFFSET(Language!$C$2,MATCH("Cam",Language!$C:$C,0)-2,Language!$B$1)&7 -> Camera7 | CE6: =OFFSET(Language!$C$2,MATCH("Cam",Language!$C:$C,0)-2,Language!$B$1)&8 -> Camera8 | DJ6: =Hidden!D78 -> 4 | DK6: =Hidden!E78 -> 6 | DL6: =BO7 -> No | DM6: =BO13 -> -45 | DN6: =BO12 -> 18 | DO6: =BO11 -> 4 | DP6: =BO10 -> 45 | DQ6: x6 | DR6: =ROUND(IF($BO$8=$C$3,$BO$8+1,$BO$8)/$A$1,0)*$A$1 -> 60 | DS6: =ROUND(IF($BO$9=$C$4,$BO$9+1,$BO$9)/$A$1,0)*$A$1 -> 0 | DT6: (6)
B7: =OFFSET(Language!$C$2,MATCH("Plan",Language!$C:$C,0)-2,Language!$B$1) -> Plan camera? | C7: Yes | E7: =OFFSET(Language!$C$2,MATCH("Plan",Language!$C:$C,0)-2,Language!$B$1) -> Plan camera? | O7: No | R7: =OFFSET(Language!$C$2,MATCH("Plan",Language!$C:$C,0)-2,Language!$B$1) -> Plan camera? | AB7: No | AE7: =OFFSET(Language!$C$2,MATCH("Plan",Language!$C:$C,0)-2,Language!$B$1) -> Plan camera? | AO7: No | AR7: =OFFSET(Language!$C$2,MATCH("Plan",Language!$C:$C,0)-2,Language!$B$1) -> Plan camera? | BB7: No | BE7: =OFFSET(Language!$C$2,MATCH("Plan",Language!$C:$C,0)-2,Language!$B$1) -> Plan camera? | BO7: No | BR7: =OFFSET(Language!$C$2,MATCH("Plan",Language!$C:$C,0)-2,Language!$B$1) -> Plan camera? | CB7: No | CE7: =OFFSET(Language!$C$2,MATCH("Plan",Language!$C:$C,0)-2,Language!$B$1) -> Plan camera? | CO7: No | DJ7: =Hidden!D88 -> 4 | DK7: =Hidden!E88 -> 6 | DL7: =CB7 -> No | DM7: =CB13 -> 45 | DN7: =CB12 -> 18 | DO7: =CB11 -> 5 | DP7: =CB10 -> 45 | DQ7: x7 | DR7: =ROUND(IF($CB$8=$C$3,$CB$8+1,$CB$8)/$A$1,0)*$A$1 -> 70 | DS7: =ROUND(IF($CB$9=$C$4,$CB$9+1,$CB$9)/$A$1,0)*$A$1 -> 0 | DT7: (7)
B8: =OFFSET(Language!$C$2,MATCH("PositionW",Language!$C:$C,0)-2,Language!$B$1) -> Position: Width | C8: 0 | E8: =OFFSET(Language!$C$2,MATCH("PositionW",Language!$C:$C,0)-2,Language!$B$1) -> Position: Width | O8: 20 | R8: =OFFSET(Language!$C$2,MATCH("PositionW",Language!$C:$C,0)-2,Language!$B$1) -> Position: Width | AB8: 30 | AE8: =OFFSET(Language!$C$2,MATCH("PositionW",Language!$C:$C,0)-2,Language!$B$1) -> Position: Width | AO8: 40 | AR8: =OFFSET(Language!$C$2,MATCH("PositionW",Language!$C:$C,0)-2,Language!$B$1) -> Position: Width | BB8: 50 | BE8: =OFFSET(Language!$C$2,MATCH("PositionW",Language!$C:$C,0)-2,Language!$B$1) -> Position: Width | BO8: 60 | BR8: =OFFSET(Language!$C$2,MATCH("PositionW",Language!$C:$C,0)-2,Language!$B$1) -> Position: Width | CB8: 70 | CE8: =OFFSET(Language!$C$2,MATCH("PositionW",Language!$C:$C,0)-2,Language!$B$1) -> Position: Width | CO8: 80 | DJ8: =Hidden!D98 -> 4 | DK8: =Hidden!E98 -> 6 | DL8: =CO7 -> No | DM8: =CO13 -> 45 | DN8: =CO12 -> 18 | DO8: =CO11 -> 16.4 | DP8: =CO10 -> 45 | DQ8: x8 | DR8: =ROUND(IF($CO$8=$C$3,$CO$8+1,$CO$8)/$A$1,0)*$A$1 -> 80 | DS8: =ROUND(IF($CO$9=$C$4,$CO$9+1,$CO$9)/$A$1,0)*$A$1 -> 0 | DT8: (8)
B9: =OFFSET(Language!$C$2,MATCH("PositionL",Language!$C:$C,0)-2,Language!$B$1) -> Position: Length | C9: 0 | E9: =OFFSET(Language!$C$2,MATCH("PositionL",Language!$C:$C,0)-2,Language!$B$1) -> Position: Length | O9: 0 | R9: =OFFSET(Language!$C$2,MATCH("PositionL",Language!$C:$C,0)-2,Language!$B$1) -> Position: Length | AB9: 0 | AE9: =OFFSET(Language!$C$2,MATCH("PositionL",Language!$C:$C,0)-2,Language!$B$1) -> Position: Length | AO9: 0 | AR9: =OFFSET(Language!$C$2,MATCH("PositionL",Language!$C:$C,0)-2,Language!$B$1) -> Position: Length | BB9: 0 | BE9: =OFFSET(Language!$C$2,MATCH("PositionL",Language!$C:$C,0)-2,Language!$B$1) -> Position: Length | BO9: 0 | BR9: =OFFSET(Language!$C$2,MATCH("PositionL",Language!$C:$C,0)-2,Language!$B$1) -> Position: Length | CB9: 0 | CE9: =OFFSET(Language!$C$2,MATCH("PositionL",Language!$C:$C,0)-2,Language!$B$1) -> Position: Length | CO9: 0 | DJ9: =Hidden!D113 -> 4 | DK9: =Hidden!E113 -> 6 | DL9: =C18 -> No | DM9: =C24 -> 45 | DN9: =C23 -> 25 | DO9: =C22 -> 5 | DP9: =C21 -> 45 | DQ9: x9 | DR9: =ROUND(IF($C$19=$C$3,$C$19+1,$C$19)/$A$1,0)*$A$1 -> 0 | DS9: =ROUND(IF($C$20=$C$4,$C$20+1,$C$20)/$A$1,0)*$A$1 -> 10 | DT9: (9)
B10: =OFFSET(Language!$C$2,MATCH("Oangle",Language!$C:$C,0)-2,Language!$B$1) -> Lens opening angle | C10: 90 | E10: =OFFSET(Language!$C$2,MATCH("Oangle",Language!$C:$C,0)-2,Language!$B$1) -> Lens opening angle | O10: 45 | R10: =OFFSET(Language!$C$2,MATCH("Oangle",Language!$C:$C,0)-2,Language!$B$1) -> Lens opening angle | AB10: 45 | AE10: =OFFSET(Language!$C$2,MATCH("Oangle",Language!$C:$C,0)-2,Language!$B$1) -> Lens opening angle | AO10: 45 | AR10: =OFFSET(Language!$C$2,MATCH("Oangle",Language!$C:$C,0)-2,Language!$B$1) -> Lens opening angle | BB10: 45 | BE10: =OFFSET(Language!$C$2,MATCH("Oangle",Language!$C:$C,0)-2,Language!$B$1) -> Lens opening angle | BO10: 45 | BR10: =OFFSET(Language!$C$2,MATCH("Oangle",Language!$C:$C,0)-2,Language!$B$1) -> Lens opening angle | CB10: 45 | CE10: =OFFSET(Language!$C$2,MATCH("Oangle",Language!$C:$C,0)-2,Language!$B$1) -> Lens opening angle | CO10: 45 | DJ10: =Hidden!D123 -> 4 | DK10: =Hidden!E123 -> 6 | DL10: =O18 -> No | DM10: =O24 -> 45 | DN10: =O23 -> 25 | DO10: =O22 -> 5 | DP10: =O21 -> 45 | DQ10: x10 | DR10: =ROUND(IF($O$19=$C$3,$O$19+1,$O$19)/$A$1,0)*$A$1 -> 0 | DS10: =ROUND(IF($O$20=$C$4,$O$20+1,$O$20)/$A$1,0)*$A$1 -> 20 | DT10: (10)
B11: =OFFSET(Language!$C$2,MATCH("Mount",Language!$C:$C,0)-2,Language!$B$1)&IF(Language!$B$26=1," [m]"," [ft]") -> Mounting height [m] | C11: 4 | E11: =OFFSET(Language!$C$2,MATCH("Mount",Language!$C:$C,0)-2,Language!$B$1)&IF(Language!$B$26=1," [m]"," [ft]") -> Mounting height [m] | O11: 4 | R11: =OFFSET(Language!$C$2,MATCH("Mount",Language!$C:$C,0)-2,Language!$B$1)&IF(Language!$B$26=1," [m]"," [ft]") -> Mounting height [m] | AB11: 5 | AE11: =OFFSET(Language!$C$2,MATCH("Mount",Language!$C:$C,0)-2,Language!$B$1)&IF(Language!$B$26=1," [m]"," [ft]") -> Mounting height [m] | AO11: 4 | AR11: =OFFSET(Language!$C$2,MATCH("Mount",Language!$C:$C,0)-2,Language!$B$1)&IF(Language!$B$26=1," [m]"," [ft]") -> Mounting height [m] | BB11: 4 | BE11: =OFFSET(Language!$C$2,MATCH("Mount",Language!$C:$C,0)-2,Language!$B$1)&IF(Language!$B$26=1," [m]"," [ft]") -> Mounting height [m] | BO11: 4 | BR11: =OFFSET(Language!$C$2,MATCH("Mount",Language!$C:$C,0)-2,Language!$B$1)&IF(Language!$B$26=1," [m]"," [ft]") -> Mounting height [m] | CB11: 5 | CE11: =OFFSET(Language!$C$2,MATCH("Mount",Language!$C:$C,0)-2,Language!$B$1)&IF(Language!$B$26=1," [m]"," [ft]") -> Mounting height [m] | CO11: 16.4 | DJ11: =Hidden!D133 -> 4 | DK11: =Hidden!E133 -> 6 | DL11: =AB18 -> No | DM11: =AB24 -> 45 | DN11: =AB23 -> 25 | DO11: =AB22 -> 5 | DP11: =AB21 -> 45 | DQ11: x11 | DR11: =ROUND(IF($AB$19=$C$3,$AB$19+1,$AB$19)/$A$1,0)*$A$1 -> 0 | DS11: =ROUND(IF($AB$20=$C$4,$AB$20+1,$AB$20)/$A$1,0)*$A$1 -> 30 | DT11: (11)
B12: =OFFSET(Language!$C$2,MATCH("Vert_Mount",Language!$C:$C,0)-2,Language!$B$1) -> Vertical Mounting Angle [°] | C12: 16 | E12: =OFFSET(Language!$C$2,MATCH("Vert_Mount",Language!$C:$C,0)-2,Language!$B$1) -> Vertical Mounting Angle [°] | O12: 18 | R12: =OFFSET(Language!$C$2,MATCH("Vert_Mount",Language!$C:$C,0)-2,Language!$B$1) -> Vertical Mounting Angle [°] | AB12: 18 | AE12: =OFFSET(Language!$C$2,MATCH("Vert_Mount",Language!$C:$C,0)-2,Language!$B$1) -> Vertical Mounting Angle [°] | AO12: 18 | AR12: =OFFSET(Language!$C$2,MATCH("Vert_Mount",Language!$C:$C,0)-2,Language!$B$1) -> Vertical Mounting Angle [°] | BB12: 18 | BE12: =OFFSET(Language!$C$2,MATCH("Vert_Mount",Language!$C:$C,0)-2,Language!$B$1) -> Vertical Mounting Angle [°] | BO12: 18 | BR12: =OFFSET(Language!$C$2,MATCH("Vert_Mount",Language!$C:$C,0)-2,Language!$B$1) -> Vertical Mounting Angle [°] | CB12: 18 | CE12: =OFFSET(Language!$C$2,MATCH("Vert_Mount",Language!$C:$C,0)-2,Language!$B$1) -> Vertical Mounting Angle [°] | CO12: 18
B13: =OFFSET(Language!$C$2,MATCH("CVD",Language!$C:$C,0)-2,Language!$B$1) -> Central viewing direction camera | C13: 45 | E13: =OFFSET(Language!$C$2,MATCH("CVD",Language!$C:$C,0)-2,Language!$B$1) -> Central viewing direction camera | O13: -45 | R13: =OFFSET(Language!$C$2,MATCH("CVD",Language!$C:$C,0)-2,Language!$B$1) -> Central viewing direction camera | AB13: -45 | AE13: =OFFSET(Language!$C$2,MATCH("CVD",Language!$C:$C,0)-2,Language!$B$1) -> Central viewing direction camera | AO13: -45 | AR13: =OFFSET(Language!$C$2,MATCH("CVD",Language!$C:$C,0)-2,Language!$B$1) -> Central viewing direction camera | BB13: -45 | BE13: =OFFSET(Language!$C$2,MATCH("CVD",Language!$C:$C,0)-2,Language!$B$1) -> Central viewing direction camera | BO13: -45 | BR13: =OFFSET(Language!$C$2,MATCH("CVD",Language!$C:$C,0)-2,Language!$B$1) -> Central viewing direction camera | CB13: 45 | CE13: =OFFSET(Language!$C$2,MATCH("CVD",Language!$C:$C,0)-2,Language!$B$1) -> Central viewing direction camera | CO13: 45 | DJ13: =Hidden!D143 -> 4 | DK13: =Hidden!E143 -> 6 | DL13: =AO18 -> No | DM13: =AO24 -> 45 | DN13: =AO23 -> 25 | DO13: =AO22 -> 1.5 | DP13: =AO21 -> 45 | DQ13: x12 | DR13: =ROUND(IF($AO$19=$C$3,$AO$19+1,$AO$19)/$A$1,0)*$A$1 -> 0 | DS13: =ROUND(IF($AO$20=$C$4,$AO$20+1,$AO$20)/$A$1,0)*$A$1 -> 40 | DT13: (12)
B14: =OFFSET(Language!$C$2,MATCH("FlameS",Language!$C:$C,0)-2,Language!$B$1) -> Flame Min. Size Settings | E14: =OFFSET(Language!$C$2,MATCH("FlameS",Language!$C:$C,0)-2,Language!$B$1) -> Flame Min. Size Settings | R14: =OFFSET(Language!$C$2,MATCH("FlameS",Language!$C:$C,0)-2,Language!$B$1) -> Flame Min. Size Settings | AE14: =OFFSET(Language!$C$2,MATCH("FlameS",Language!$C:$C,0)-2,Language!$B$1) -> Flame Min. Size Settings | AR14: =OFFSET(Language!$C$2,MATCH("FlameS",Language!$C:$C,0)-2,Language!$B$1) -> Flame Min. Size Settings | BE14: =OFFSET(Language!$C$2,MATCH("FlameS",Language!$C:$C,0)-2,Language!$B$1) -> Flame Min. Size Settings | BR14: =OFFSET(Language!$C$2,MATCH("FlameS",Language!$C:$C,0)-2,Language!$B$1) -> Flame Min. Size Settings | CE14: =OFFSET(Language!$C$2,MATCH("FlameS",Language!$C:$C,0)-2,Language!$B$1) -> Flame Min. Size Settings | DJ14: =Hidden!D153 -> 4 | DK14: =Hidden!E153 -> 6 | DL14: =BB18 -> No | DM14: =BB24 -> 45 | DN14: =BB23 -> 25 | DO14: =BB22 -> 1.5 | DP14: =BB21 -> 45 | DQ14: x13 | DR14: =ROUND(IF($BB$19=$C$3,$BB$19+1,$BB$19)/$A$1,0)*$A$1 -> 0 | DS14: =ROUND(IF($BB$20=$C$4,$BB$20+1,$BB$20)/$A$1,0)*$A$1 -> 15 | DT14: (13)
B15: =OFFSET(Language!$C$2,MATCH("SmokeS",Language!$C:$C,0)-2,Language!$B$1) -> Smoke Min. Size Settings | E15: =OFFSET(Language!$C$2,MATCH("SmokeS",Language!$C:$C,0)-2,Language!$B$1) -> Smoke Min. Size Settings | R15: =OFFSET(Language!$C$2,MATCH("SmokeS",Language!$C:$C,0)-2,Language!$B$1) -> Smoke Min. Size Settings | AE15: =OFFSET(Language!$C$2,MATCH("SmokeS",Language!$C:$C,0)-2,Language!$B$1) -> Smoke Min. Size Settings | AR15: =OFFSET(Language!$C$2,MATCH("SmokeS",Language!$C:$C,0)-2,Language!$B$1) -> Smoke Min. Size Settings | BE15: =OFFSET(Language!$C$2,MATCH("SmokeS",Language!$C:$C,0)-2,Language!$B$1) -> Smoke Min. Size Settings | BR15: =OFFSET(Language!$C$2,MATCH("SmokeS",Language!$C:$C,0)-2,Language!$B$1) -> Smoke Min. Size Settings | CE15: =OFFSET(Language!$C$2,MATCH("SmokeS",Language!$C:$C,0)-2,Language!$B$1) -> Smoke Min. Size Settings | DJ15: =Hidden!D163 -> 4 | DK15: =Hidden!E163 -> 6 | DL15: =BO18 -> No | DM15: =BO24 -> 45 | DN15: =BO23 -> 25 | DO15: =BO22 -> 1.5 | DP15: =BO21 -> 45 | DQ15: x14 | DR15: =ROUND(IF($BO$19=$C$3,$BO$19+1,$BO$19)/$A$1,0)*$A$1 -> 6 | DS15: =ROUND(IF($BO$20=$C$4,$BO$20+1,$BO$20)/$A$1,0)*$A$1 -> 12 | DT15: (14)
... 10 more rows

Sheet Help
A2: =OFFSET(Language!$C$2,MATCH("Help",Language!$C:$C,0)-2,Language!$B$1) -> Help
B4: =OFFSET(Language!$C$2,MATCH("H_Warn",Language!$C:$C,0)-2,Language!$B$1) -> Warning
C5: =OFFSET(Language!$C$2,MATCH("Warn_text",Language!$C:$C,0)-2,Language!$B$1) -> This tool gives only an indication about the detectable sizes for flame and smoke and covered distances. In an application the installation have to be tested with flame and smoke tests and the functionality have to be verified. Bosch assumes no liability for the accuracy of the values.
B7: =OFFSET(Language!$C$2,MATCH("H_MaxDist",Language!$C:$C,0)-2,Language!$B$1) -> Tab - Maximum Distance
C8: =OFFSET(Language!$C$2,MATCH("H_MaxDist1",Language!$C:$C,0)-2,Language!$B$1) -> The Tab "Maximum Distance" can be used to get a first guess about the distances which can be covered from AVIOTEC for flame detection and smoke detection. Cells marked in green can be changed by the user. The calculator gives information about the minimum distance and the maximum distance at floor level which is covered by AVIOTEC. The field of view screen gives additional information about the maximum distance in different parts of the picture: - center - corners - horizontal and vertical edges
C9: =OFFSET(Language!$C$2,MATCH("H_MaxDist2",Language!$C:$C,0)-2,Language!$B$1) -> Camera mounting height Defines the minimum distance.
C10: =OFFSET(Language!$C$2,MATCH("H_MaxDist3",Language!$C:$C,0)-2,Language!$B$1) -> Opening angle of the lens AVIOTEC uses a variofocal lens - the opening angle of the used lens can be set with a drop-down from 45 - 110° Defines distortion of the image an maximum distance.
C11: =OFFSET(Language!$C$2,MATCH("H_MaxDist4",Language!$C:$C,0)-2,Language!$B$1) -> Minimum flame with / minimum smoke with Defines the minimum flame and/or smoke size which shall be detected in the field of view. For standard test fires - e.g. TF 5 the size in the field of view is ~ 0.5 m (19.7 in). Defines the maximum distance.
C12: =OFFSET(Language!$C$2,MATCH("H_MaxDist5",Language!$C:$C,0)-2,Language!$B$1) -> Settings Fire Detection - Min Flame size / Min Smoke size Defines the settings which can made in the online menu of AVIOTEC. The numbers indicate the step of the slider in the configuration menu of AVIOTEC. Medium = The standard setting in the online menu 1 (small) = Smallest setting for flame/smoke which can be detected in the field of view. Use this setting for long distances x (large) = Largest setting for flame/smoke which can be detected in the field of view. Use this setting for short distances.
C14: =OFFSET(Language!$C$2,MATCH("H_MaxDist6",Language!$C:$C,0)-2,Language!$B$1) -> back to tab - Maximum Distance
... 8 more rows

Sheet History
B3: =OFFSET(Language!$C$2,MATCH("Ver",Language!$C:$C,0)-2,Language!$B$1) -> Version | C3: =OFFSET(Language!$C$2,MATCH("Dat",Language!$C:$C,0)-2,Language!$B$1) -> Date | D3: =OFFSET(Language!$C$2,MATCH("Note",Language!$C:$C,0)-2,Language!$B$1) -> Notes
B4: 1.0 | C4: 2016-02-08 | D4: =OFFSET(Language!$C$2,MATCH("Hist1.0",Language!$C:$C,0)-2,Language!$B$1) -> Initial version
B5: 2.0 | C5: 2016-03-15 | D5: =OFFSET(Language!$C$2,MATCH("Hist2.0",Language!$C:$C,0)-2,Language!$B$1) -> Help added
B6: 2.1 | C6: 2016-04-10 | D6: =OFFSET(Language!$C$2,MATCH("Hist2.1",Language!$C:$C,0)-2,Language!$B$1) -> Config 4 added
B7: 2.2 | C7: 2016-04-12 | D7: =OFFSET(Language!$C$2,MATCH("Hist2.2",Language!$C:$C,0)-2,Language!$B$1) -> Room size up to 100 x 100 m (328 x 328 ft)
B8: 2.3 | C8: 2016-04-14 | D8: =OFFSET(Language!$C$2,MATCH("Hist2.3",Language!$C:$C,0)-2,Language!$B$1) -> Added config 5 & 6
B9: 2.4 | C9: 2016-08-22 | D9: =OFFSET(Language!$C$2,MATCH("Hist2.4",Language!$C:$C,0)-2,Language!$B$1) -> Usability changes
B10: 2.5 | C10: 2016-09-12 | D10: =OFFSET(Language!$C$2,MATCH("Hist2.5",Language!$C:$C,0)-2,Language!$B$1) -> Expert Mode, color indication smoke
B11: 2.5.1 | C11: 2016-12-01 | D11: =OFFSET(Language!$C$2,MATCH("Hist2.5.1",Language!$C:$C,0)-2,Language!$B$1) -> Language en + de
B12: 2.5.3 | C12: 2016-12-05 | D12: =OFFSET(Language!$C$2,MATCH("Hist2.5.3",Language!$C:$C,0)-2,Language!$B$1) -> Corrections and choise Metric+Imperial
B13: 2.5.4 | C13: 2017-01-12 | D13: =OFFSET(Language!$C$2,MATCH("Hist2.5.4",Language!$C:$C,0)-2,Language!$B$1) -> Corrections + 16 cameras
B14: 2.5.5 | C14: 2017-01-17 | D14: =OFFSET(Language!$C$2,MATCH("Hist2.5.5",Language!$C:$C,0)-2,Language!$B$1) -> Free camera placement
B15: 2.5.6 | C15: 2017-01-25 | D15: =OFFSET(Language!$C$2,MATCH("Hist2.5.6",Language!$C:$C,0)-2,Language!$B$1) -> Camera positions will be shown in the planning
B16: 2.6 | C16: 2017-05-29 | D16: =OFFSET(Language!$C$2,MATCH("Hist2.6",Language!$C:$C,0)-2,Language!$B$1) -> Added: AVIOTEC mounting angle, vertical opening angle, outline of field of view, languages, change to Firmware version 6.40

Sheet Language (hidden)
A1: Selection | B1: 1
B2: English | D2: English | E2: Български | F2: Czech | G2: Dansk | H2: Deutsch | I2: Dutch/Nederlands | J2: Eesti (Estland) | K2: Français | L2: Greek | M2: Hrvatski | N2: Hungarian | O2: Italian | P2: Lietuvių (Lithuania) | Q2: Polish | R2: Portuguese | S2: Română | T2: Russian | U2: Spanish | V2: Srpski | W2: Svenska | X2: Turkish
B3: Български | C3: Title | D3: AVIOTEC - Distance calculation tool V2.6 | E3: AVIOTEC - Инструмент за изчисляване на разстояние V2.6 | F3: AVIOTEC - kalkulace vzdálenosti V2.6 | G3: AVIOTEC - Afstandsberegning V.2.6 | H3: AVIOTEC - Abstand-Kalkulationstool V2.6 | I3: AVIOTEC - Afstand berekening hulpmiddel V.2.6 | J3: AVIOTEC - vahemaakalkulaator V2.6 | K3: AVIOTEC - Outil de Calcul des Distances V2.6 | L3: AVIOTEC -Εργαλείο υπολογισμού απόστασης V2.6 | M3: AVIOTEC - Alat za proračun daljine detekcije V2.6. | N3: AVIOTEC - Tervezési segédlet V2.6 | O3: AVIOTEC - Tool di calcolo V2.6 | P3: AVIOTEC - Atstumų skaičiuoklė V2.6 | Q3: AVIOTEC - Narzędzie kalkulacji odległości V2.6 | R3: AVIOTEC - Ferramenta de cálculo de distâncias V2.6 | S3: AVIOTEC-Unealta de calculare de la distanţă | T3: AVIOTEC - Инструмент для проектирования V2.6 | U3: AVIOTEC - Herramienta de cálculo de distancias V2.6 | V3: AVIOTEC - Alat za proračun daljine detekcije V2.6. | W3: AVIOTEC - Avståndsberäkning V.2.6 | X3: AVIOTEC - Mesafe hesaplama aracı V2.6
B4: Czech | C4: Step1 | D4: Step 1: Define installation and minimum flame and smoke size | E4: Стъпка 1: Определете инсталацията и мин. размер на пламъка и дима | F4: Krok 2: Nastavte minimální velikost detekčního algoritmu | G4: Trin 1: Installations parametre og minimumsflamme og røg størrelse | H4: Schritt 1: Definition der Installationshöhe und min. Flammen- und Rauchgröße | I4: Stap 1: definiëren: instalatie en minimumgrootte van vlam en rook | J4: Samm 1: Määrake paigalduskõrgus ja leegi ja suitsu miinimumsuurus | K4: Etape 1: Définir installation et taille minimale flamme et fumée | L4: Βήμα 1: Καθορισμός τοποθέτησης και ελάχιστο μέγεθος φλόγας και καπνού | M4: Korak 1: Definirajte instalaciju i minimalnu veličinu plamena i dima | N4: 1. lépés: Határozza meg a telepítés jellegét és a minimum tűz és füst méretet | O4: Step 1: Definizione dell'installazione e delle dimensioni minime di fumo e fiamma | P4: Žingsnis 1: Apibrėžkite montavimo aukštį, minimalius liepsnos ir dūmų dydžius | Q4: Krok 1: Wprowadź instalację oraz minimalne rozmiary płomienia i dymu | R4: Passo 1: Definir instalação e tamanhos mínimos de chama e fumo | S4: Etapa 1: Definirea instalării şi a dimensiunilor minime ale flăcărilor şi fumului | T4: Шаг 1: Укажите расположение камеры, минимальный размер пламени и дыма | U4: Paso 1: Defina instalación y tamaños mínimos de llama y humo | V4: Korak 1: Definišite instalaciju i minimalnu veličinu plamena i dima | W4: Steg 1: Installations parametrar och minsta flam- och rökstorlek | X4: Adım 1: Kurulum ve minimum alev ve duman boyutunu tanımlayın
B5: Dansk | C5: Step2 | D5: Step 2: Adjust minimum detection size of the algorithm | E5: Стъпка 2: Настройте мин. размер на разпознаване на алгоритъма | F5: Krok 2: Nastavte minimální velikost detekčního algoritmu | G5: Trin 2: Justér minimums detektions størrelsen for algoritmen. | H5: Schritt 2: Anpassung der Mindestdetektionsgröße des Algorithmus | I5: Stap 2: aanpassen: minimale detectiegrootte van het algoritme | J5: Samm 2: Määrake algoritmi minimaalne avastamissuurus | K5: Etape 2: Ajuster taille min de détection de l'algorithme | L5: Βήμα 2: Ορισμός ελάχιστου μεγέθους ανίχνευσης | M5: Korak 2: Podesite minimalnu veličinu detekcije algoritma | N5: 2. lépés: Állítsa be az algoritmus minimum detektálási méretét | O5: Step 2: Ottimizzazione della dimensione minima di rilevazione dell'algoritmo | P5: Žingsnis 2: Nustatykite algoritmo mažiausią aptikimo dydį | Q5: Krok 2: Dostosuj minimalny rozmiar detekcji dla algorytmu | R5: Passo 2: Ajuste o algoritmo ao tamanho mínimo detecção | S5: Etapa 2: Ajustarea dimensiunii medii de detecţie a algoritmului | T5: Шаг 2: Настройте минимальный размер обнаружения для алгоритма | U5: Paso 2: Ajuste tamaño mínimo de detección del algoritmo | V5: Korak 2: Podesite minimalnu veličinu detekcije algoritma | W5: Steg 2: Justera minsta detektions storlek för algoritmen | X5: Adım2: Algoritmanın minimum algılama boyutunu ayarlayın
B6: Deutsch | C6: dmin | D6: Minimum possible detection distance at floor level | E6: Мин. възможно разстояние за разчитане спрямо нивото на пода | F6: Minimální možná detekční vzdálenost na úrovni podlahy | G6: Mindste mulige detektions afstand på gulv niveau | H6: Minimal mögliche Detektionsentfernung | I6: Laagst mogelijke afstand voor detectie op vloerniveau | J6: Minimaalne võimalik avastamiskaugus põrandatasandil | K6: Distance minimale de détection au niveau du sol | L6: Ελάχιστη απόσταση ανίχνευσης στο πάτωμα | M6: Minimalna daljina detekcije na nivou poda | N6: Lehetséges minimum detektálási távolság a padló szintjén | O6: Distanza minima di rivelazione a livello pavimento | P6: Galimas mažiausias aptikimo atstumas grindų lygyje | Q6: Minimalna odległość wykrywania z poziomu podłogi | R6: Distância mínima de possível de detecção ao nível do solo | S6: Distanţa minimă posibilă pentru detecţie la nivelul podelei | T6: Минимально возможное расстояние для обнаружения на уровне пола | U6: Distancia mínima de detección posible al nivel del suelo | V6: Minimalna daljina detekcije na nivou poda | W6: Minsta möjliga avstånd för detektion på marknivå | X6: Zemin seviyesinde mümkün olan minimum algılama mesafesi
B7: Dutch/Nederlands | C7: dmax | D7: Maximum possible detection distance at floor level | E7: Макс. възможно разстояние за разчитане спрямо нивото на пода | F7: Maximální možná detekční vzdálenost na úrovni podlahy | G7: Maximal afstand for detektion på gulv niveau. | H7: Maximal mögliche Detektionsentfernung | I7: Maximaal mogelijke afstand voor detectie op vloerniveau | J7: Maksimaalne võimalik avastamiskaugus põrandatasandil | K7: Distance maximale de détection au niveau du sol | L7: Μέγιστη απόσταση ανίχνευσης στο πάτωμα | M7: Maksimalna daljina detekcije na nivou poda | N7: Lehetséges maximum detektálási távolság a padló szintjén | O7: Distanza massima di rivelazione a livello pavimento | P7: Galimas didžiausias aptikimo atstumas grindų lygyje | Q7: Maksymalna odległość wykrywania z poziomu podłogi | R7: Distância máxima de possível de detecção ao nível do solo | S7: Distanţa maximă posibilă pentru detecţie la nivelul podelei | T7: Максимально возможное расстояние для обнаружения на уровне пола | U7: Distancia máxima de detección posible al nivel del suelo | V7: Maksimalna daljina detekcije na nivou poda | W7: Maximalt avstånd för detektion på marknivå | X7: Zemin seviyesinde mümkün olan maksimum algılama mesafesi
B8: Eesti (Estland) | C8: legend | D8: Legend | E8: Легенда | F8: Legenda | G8: Forklaring | H8: Legende | I8: Legenda | J8: Seletus | K8: Légende | L8: Σχετικά | M8: Legenda | N8: Magyarázat | O8: Legenda | P8: Legenda | Q8: Legenda | R8: Legenda | S8: Legendă | T8: Легенда | U8: Leyenda | V8: Legenda | W8: Förklaring | X8: Açıklamalar
B9: Français | C9: Inst | D9: Installation | E9: Инсталация | F9: Instalace | G9: Installation | H9: Installation | I9: Installatie | J9: Paigaldus | K9: Installation | L9: Εγκατάσταση | M9: Instalacija | N9: Telepítés | O9: Installazione | P9: Montavimas | Q9: Instalacja | R9: Instalação | S9: Instalare | T9: Инсталляция | U9: Instalación | V9: Instalacija | W9: Installation | X9: Kurulum
B10: Greek | C10: Detec | D10: Fire detection | E10: Пожароразпознаване | F10: Detekce požáru | G10: Brand detektion | H10: Branddetektion | I10: Branddetectie | J10: Tulekahju avastamine | K10: Détection d'Incendie | L10: Ανίχνευση φλόγας | M10: Detekcija vatre | N10: Tűzjelzés | O10: Rivelazione incendio | P10: Gaisro aptikimas | Q10: Wykrycie ognia | R10: Detecção de incêndio | S10: Detecţie incendiu | T10: Fire detection | U10: Detección de incendios | V10: Detekcija vatre | W10: Brand detektion | X10: Yangın algılama
B11: Hrvatski | C11: Setting | D11: Settings Fire Detection | E11: Настройки за пожароизвестяване | F11: Nastavení detekce požáru | G11: Indstillinger for brand detektion | H11: Einstellung der Branddetektion | I11: Instellingen Branddetectie | J11: Tulekahju avastamise asetused | K11: Paramètres Détection Incendie | L11: Ρυθμίσεις ανίχνευσης φλόγας | M11: Postavke detekcije vatre | N11: Tűzjelzés beállításai | O11: Settaggio rivelazione incendio | P11: Gaisro aptikimo nustatymai | Q11: Ustawienia wykrycia ognia | R11: Configuração da Detecção de Incêndio | S11: Setări detecţie incendiu | T11: Настройки обнаружения пламени | U11: Configuración de detección de incendios | V11: Postavke detekcije vatre | W11: Inställningar för brand detektion | X11: Yangın Algılama Ayarları
B12: Hungarian | C12: Mheight | D12: Camera Mounting Height | E12: Височина за монтаж на камерата | F12: Výška montáže kamery | G12: Monteringshøjde for kamera | H12: Montagehöhe der Kamera | I12: Camera montagehoogte | J12: Kaamera paigalduskõrgus | K12: Hauteur de Montage Caméra | L12: Ύψος τοποθέτησης κάμερας | M12: Visina montiranja kamere | N12: Kamera telepítési magasság | O12: Altezza di installazione della telecamera | P12: Kameros montavimo aukštis | Q12: Wysokość montażu kamery | R12: Altura de montagem da câmara | S12: Înălţimea de montare a camerei | T12: Высота установки камеры | U12: Altura de montaje de la cámara | V12: Visina montiranja kamere | W12: Monteringshöjd för kamera | X12: Kamera Montaj Yüksekliği
B13: Italian | C13: Oangle | D13: Lens opening angle | E13: Ъгъл на отваряне на обектива | F13: Úhel otevření objektivu | G13: Åbningsvinkel for optik | H13: Öffnungswinkel des Objektivs | I13: Lens openingshoek | J13: Objektiivi vaatenurk | K13: Angle d'ouverture Lentille | L13: Άνοιγμα γωνίας φακού | M13: Kut otvorenosti objektiva | N13: Optika nyílásszög | O13: Angolo di apertura dell'obiettivo | P13: Objektyvo matymo kampas | Q13: Kąt pracy obiektywu | R13: Angulo de abertura da lente | S13: Unghiul de deschidere al obiectivului | T13: Угол открытия объектива | U13: Ángulo de apertura de la lente | V13: Ugao otvorenosti objektiva | W13: Öppningsvinkel för optik | X13: Objektif açılma açısı
B14: Lietuvių (Lithuania) | C14: FlameW | D14: Minimum flame width | E14: Мин. ширина на пламъка | F14: Minimální šířka plamene | G14: Minimums flammebredde | H14: Min. Flammengröße | I14: Minimale vlam breedte | J14: Leegi minimaalne laius | K14: Largeur minimale flamme | L14: Ελάχιστο μήκος φλόγας | M14: Minimalna širina plamena | N14: Minimum láng szélesség | O14: Larghezza minima della fiamma | P14: Mažiausias liepsnos plotis | Q14: Minimalna szerokość płomienia | R14: Largura mínima da chama | S14: Lăţimea medie a flăcării | T14: Минимальная ширина пламени | U14: Anchura mínima de llama | V14: Minimalna širina plamena | W14: Minsta bredd på flamma | X14: Minimum alev genişliği
B15: Polish | C15: SmokeW | D15: Minimum smoke width | E15: Мин. ширина на дима | F15: Minimální šířka kouře | G15: Minimums røg bredde | H15: Min. Rauchgröße | I15: Minimale rook breedte | J15: Suitsu minimaalne laius | K15: Largeur minimale fumée | L15: Ελάχιστο μήκος καπνού | M15: Minimalna širina dima | N15: Minimum füst szélesség | O15: Largezza minima del fumo | P15: Mažiausias dūmų plotis | Q15: Minimalna szerokość dymu | R15: Largura mínima do fumo | S15: Lăţimea medie a fumului | T15: Минимальная ширина дыма | U15: Anchura mínima de humo | V15: Minimalna širina dima | W15: Minsta bredd på rökpelare | X15: Minimum duman genişliği
... 18 more rows

Sheet Hidden (hidden)
B1: Constant | C1: Unit | D1: Value
B3: Image Width | C3: [px] | D3: 640
B4: Max Fire Viewing Angle | C4: [deg] | D4: =IF(Language!B30=2,37.5,30) -> 37.5
O5: Opening angle, hor | Q5: 75
H6: Larger required flame size at hor. Boarders | O6: Opening angle, ver | Q6: =9/16*Q5 -> 42.1875
B7: Flame | C7: Smoke | D7: Flame Sizes | E7: Smoke Sizes | H7: Opening Angle | O7: Opening angle, corner | Q7: =SQRT((8^2)+(4.5^2))/8*Q5 -> 86.05106133
B8: ="1 ("&OFFSET(Language!$C$2,MATCH("Small",Language!$C:$C,0)-2,Language!$B$1)&") - 1,1%" -> 1 (Small) - 1,1% | C8: ="1 ("&OFFSET(Language!$C$2,MATCH("Small",Language!$C:$C,0)-2,Language!$B$1)&") - 1,56%" -> 1 (Small) - 1,56% | D8: 7 | E8: 10 | H8: 45 | I8: 0.09 | J8: =ROUNDDOWN($R$11/AVERAGE($R$11:INDIRECT("r"& 11+H8/5)),2) -> 1.03 | O8: Step Hor | P8: =Q5/5 -> 15
B9: 2 - 1,25% | C9: 2 - 1,7% | D9: 8 | E9: 11 | H9: 46 | I9: =(($I$23-$I$8)/($H$23-$H$8))*(H9-$H$8)+$I$8 -> 0.094 | J9: =(($J$13-$J$8)/($H$13-$H$8))*(H9-$H$8)+$J$8 -> 1.03 | O9: Step Vert | P9: =ROUNDDOWN(Q6/5,0)+(IF(MOD(Q6,5)<=2,0,1)) -> 9 | Q9: =MOD(Q6,5) -> 2.1875
B10: 3 - 1,4% | C10: 3 - 1,9% | D10: 9 | E10: 12 | H10: 47 | I10: =(($I$23-$I$8)/($H$23-$H$8))*(H10-$H$8)+$I$8 -> 0.098 | J10: =(($J$13-$J$8)/($H$13-$H$8))*(H10-$H$8)+$J$8 -> 1.03 | O10: Step Corner | P10: =ROUNDDOWN(Q7/5,0)+(IF(MOD(Q7,5)<=2,0,1)) -> 17
B11: 4 (Std) - 1,56% | C11: 4 - 2,0% | D11: 10 | E11: 13 | H11: 48 | I11: 0.102 | J11: =(($J$13-$J$8)/($H$13-$H$8))*(H11-$H$8)+$J$8 -> 1.03 | Q11: 0 | R11: 96.28435689 | S11: 0.01038590309
B12: 5 - 1,7% | C12: 5 - 2,2% | D12: 11 | E12: 14 | H12: 49 | I12: 0.106 | J12: =(($J$13-$J$8)/($H$13-$H$8))*(H12-$H$8)+$J$8 -> 1.03 | Q12: 5 | R12: 96.18025999 | S12: 0.01039714386
B13: 6 - 1,9% | C13: 6 (Std) - 2,3% | D13: 12 | E13: 15 | H13: 50 | I13: 0.11 | J13: =ROUNDDOWN($R$11/AVERAGE($R$11:INDIRECT("r"& 11+H13/5)),2) -> 1.03 | Q13: 10 | R13: 95.86820165 | S13: 0.01043098736
B14: ="7 ("&OFFSET(Language!$C$2,MATCH("large",Language!$C:$C,0)-2,Language!$B$1)&") - 2,0%" -> 7 (Largest) - 2,0% | C14: 7 - 2,5% | D14: 13 | E14: 16 | H14: 51 | I14: 0.114 | J14: =(($J$18-$J$13)/($H$18-$H$13))*(H14-$H$13)+$J$13 -> 1.032 | Q14: 15 | R14: 95.3488788 | S14: 0.0104878003
C15: 8 - 2,7% | E15: 17 | H15: 52 | I15: 0.118 | J15: =(($J$18-$J$13)/($H$18-$H$13))*(H15-$H$13)+$J$13 -> 1.034 | Q15: 20 | R15: 94.62345247 | S15: 0.01056820454
... 18 more rows

Sheet Mounting_FreeDefine (hidden)
A1: 0 | B1: 1 | C1: 2 | D1: 3 | E1: 4 | F1: 5 | G1: 6 | H1: 7 | I1: 8 | J1: 9 | K1: 10 | L1: 11 | M1: 12 | N1: 13 | O1: 14 | P1: 15 | Q1: 16 | R1: 17 | S1: 18 | T1: 19 | U1: 20 | V1: 21 | W1: 22 | X1: 23 | Y1: 24 | Z1: 25 | AA1: 26 | AB1: 27 | AC1: 28 | AD1: 29 | AE1: 30 | AF1: 31 | AG1: 32 | AH1: 33 | AI1: 34 | AJ1: 35 | AK1: 36 | AL1: 37 | AM1: 38 | AN1: 39 | AO1: 40 | AP1: 41 | AQ1: 42 | AR1: 43 | AS1: 44 | AT1: 45 | AU1: 46 | AV1: 47 | AW1: 48 | AX1: 49 | AY1: 50 | AZ1: 51 | BA1: 52 | BB1: 53 | BC1: 54 | BD1: 55 | BE1: 56 | BF1: 57 | BG1: 58 | BH1: 59 | BI1: 60 | BJ1: 61 | BK1: 62 | BL1: 63 | BM1: 64 | BN1: 65 | BO1: 66 | BP1: 67 | BQ1: 68 | BR1: 69 | BS1: 70 | BT1: 71 | BU1: 72 | BV1: 73 | BW1: 74 | BX1: 75 | BY1: 76 | BZ1: 77 | CA1: 78 | CB1: 79 | CC1: 80 | CD1: 81 | CE1: 82 | CF1: 83 | CG1: 84 | CH1: 85 | CI1: 86 | CJ1: 87 | CK1: 88 | CL1: 89 | CM1: 90 | CN1: 91 | CO1: 92 | CP1: 93 | CQ1: 94 | CR1: 95 | CS1: 96 | CT1: 97 | CU1: 98 | CV1: 99 | CW1: 100 | CX1: 101 | CY1: 102 | CZ1: 103 | DA1: 104 | DB1: 105 | DC1: 106 | DD1: 107 | DE1: 108 | DF1: 109 | DG1: 110 | DH1: 111 | DI1: 112 | DJ1: 113 | DK1: 114 | DL1: 115 | DM1: 116 | DN1: 117 | DO1: 118 | DP1: 119 | DQ1: 120 | DR1: 121 | DS1: 122 | DT1: 123 | DU1: 124 | DV1: 125 | DW1: 126 | DX1: 127 | DY1: 128 | DZ1: 129 | EA1: 130 | EB1: 131 | EC1: 132 | ED1: 133 | EE1: 134 | EF1: 135 | EG1: 136 | EH1: 137 | EI1: 138 | EJ1: 139 | EK1: 140 | EL1: 141 | EM1: 142 | EN1: 143 | EO1: 144 | EP1: 145 | EQ1: 146 | ER1: 147 | ES1: 148 | ET1: 149 | EU1: 150 | EV1: 151 | EW1: 152 | EX1: 153 | EY1: 154 | EZ1: 155 | FA1: 156 | FB1: 157 | FC1: 158 | FD1: 159 | FE1: 160 | FF1: 161 | FG1: 162 | FH1: 163 | FI1: 164 | FJ1: 165 | FK1: 166 | FL1: 167 | FM1: 168 | FN1: 169 | FO1: 170 | FP1: 171 | FQ1: 172 | FR1: 173 | FS1: 174 | FT1: 175 | FU1: 176 | FV1: 177 | FW1: 178 | FX1: 179 | FY1: 180 | FZ1: 181 | GA1: 182 | GB1: 183 | GC1: 184 | GD1: 185 | GE1: 186 | GF1: 187 | GG1: 188 | GH1: 189 | GI1: 190 | GJ1: 191 | GK1: 192 | GL1: 193 | GM1: 194 | GN1: 195 | GO1: 196 | GP1: 197 | GQ1: 198 | GR1: 199 | GS1: 200 | GT1: 201 | GU1: 202 | GV1: 203 | GW1: 204 | GX1: 205 | GY1: 206 | GZ1: 207 | HA1: 208 | HB1: 209 | HC1: 210 | HD1: 211 | HE1: 212 | HF1: 213 | HG1: 214 | HH1: 215 | HI1: 216 | HJ1: 217 | HK1: 218 | HL1: 219 | HM1: 220 | HN1: 221 | HO1: 222 | HP1: 223 | HQ1: 224 | HR1: 225 | HS1: 226 | HT1: 227 | HU1: 228 | HV1: 229 | HW1: 230 | HX1: 231 | HY1: 232 | HZ1: 233 | IA1: 234 | IB1: 235 | IC1: 236 | ID1: 237 | IE1: 238 | IF1: 239 | IG1: 240 | IH1: 241 | II1: 242 | IJ1: 243 | IK1: 244 | IL1: 245 | IM1: 246 | IN1: 247 | IO1: 248 | IP1: 249 | IQ1: 250 | IR1: 251 | IS1: 252 | IT1: 253 | IU1: 254 | IV1: 255 | IW1: 256 | IX1: 257 | IY1: 258 | IZ1: 259 | JA1: 260 | JB1: 261 | JC1: 262 | JD1: 263 | JE1: 264 | JF1: 265 | JG1: 266 | JH1: 267 | JI1: 268 | JJ1: 269 | JK1: 270 | JL1: 271 | JM1: 272 | JN1: 273 | JO1: 274 | JP1: 275 | JQ1: 276 | JR1: 277 | JS1: 278 | JT1: 279 | JU1: 280 | JV1: 281 | JW1: 282 | JX1: 283 | JY1: 284 | JZ1: 285 | KA1: 286 | KB1: 287 | KC1: 288 | KD1: 289 | KE1: 290 | KF1: 291 | KG1: 292 | KH1: 293 | KI1: 294 | KJ1: 295 | KK1: 296 | KL1: 297 | KM1: 298 | KN1: 299 | KO1: 300 | KP1: 301 | KQ1: 302 | KR1: 303 | KS1: 304 | KT1: 305 | KU1: 306 | KV1: 307 | KW1: 308 | KX1: 309 | KY1: 310 | KZ1: 311 | LA1: 312 | LB1: 313 | LC1: 314 | LD1: 315 | LE1: 316 | LF1: 317 | LG1: 318 | LH1: 319 | LI1: 320 | LJ1: 321 | LK1: 322 | LL1: 323 | LM1: 324 | LN1: 325 | LO1: 326 | LP1: 327 | LQ1: 328 | LR1: 329 | LS1: 330 | LT1: 331 | LU1: 332 | LV1: 333 | LW1: 334 | LX1: 335 | LY1: 336 | LZ1: 337 | MA1: 338 | MB1: 339 | MC1: 340 | MD1: 341 | ME1: 342 | MF1: 343 | MG1: 344 | MH1: 345 | MI1: 346 | MJ1: 347 | MK1: 348 | ML1: 349 | MM1: 350 | MN1: 351 | MO1: 352 | MP1: 353 | MQ1: 354 | MR1: 355 | MS1: 356 | MT1: 357 | MU1: 358 | MV1: 359 | MW1: 360 | MX1: 361 | MY1: 362 | MZ1: 363 | NA1: 364 | NB1: 365 | NC1: 366 | ND1: 367 | NE1: 368 | NF1: 369 | NG1: 370 | NH1: 371 | NI1: 372 | NJ1: 373 | NK1: 374 | NL1: 375 | NM1: 376 | NN1: 377 | NO1: 378 | NP1: 379 | NQ1: 380 | NR1: 381 | NS1: 382 | NT1: 383 | NU1: 384 | NV1: 385 | NW1: 386 | NX1: 387 | NY1: 388 | NZ1: 389 | OA1: 390 | OB1: 391 | OC1: 392 | OD1: 393 | OE1: 394 | OF1: 395 | OG1: 396 | OH1: 397 | OI1: 398 | OJ1: 399 | OK1: 400 | OL1: 401 | OM1: 402 | ON1: 403 | OO1: 404 | OP1: 405 | OQ1: 406 | OR1: 407 | OS1: 408 | OT1: 409 | OU1: 410 | OV1: 411 | OW1: 412 | OX1: 413 | OY1: 414 | OZ1: 415 | PA1: 416 | PB1: 417 | PC1: 418 | PD1: 419 | PE1: 420 | PF1: 421 | PG1: 422 | PH1: 423 | PI1: 424 | PJ1: 425 | PK1: 426 | PL1: 427 | PM1: 428 | PN1: 429 | PO1: 430 | PP1: 431 | PQ1: 432 | PR1: 433 | PS1: 434 | PT1: 435 | PU1: 436 | PV1: 437 | PW1: 438 | PX1: 439 | PY1: 440 | PZ1: 441 | QA1: 442 | QB1: 443 | QC1: 444 | QD1: 445 | QE1: 446 | QF1: 447 | QG1: 448 | QH1: 449 | QI1: 450 | QJ1: 451 | QK1: 452 | QL1: 453 | QM1: 454 | QN1: 455 | QO1: 456 | QP1: 457 | QQ1: 458 | QR1: 459 | QS1: 460 | QT1: 461 | QU1: 462 | QV1: 463 | QW1: 464 | QX1: 465 | QY1: 466 | QZ1: 467 | RA1: 468 | RB1: 469 | RC1: 470 | RD1: 471 | RE1: 472 | RF1: 473 | RG1: 474 | RH1: 475 | RI1: 476 | RJ1: 477 | RK1: 478 | RL1: 479 | RM1: 480 | RN1: 481 | RO1: 482 | RP1: 483 | RQ1: 484 | RR1: 485 | RS1: 486 | RT1: 487 | RU1: 488 | RV1: 489 | RW1: 490 | RX1: 491 | RY1: 492 | RZ1: 493 | SA1: 494 | SB1: 495 | SC1: 496 | SD1: 497 | SE1: 498 | SF1: 499 | SG1: 500
A2: 1 | B2: - | C2: - | D2: - | E2: - | F2: - | G2: - | H2: - | I2: 27.96555735 | J2: 30.93177141 | K2: 33.94759612 | L2: 37.00214811 | M2: 40.08735376 | N2: 43.19715164 | O2: 46.32692995 | P2: 49.4731324 | Q2: 52.63298096 | R2: 55.80427886 | S2: 58.98526909 | T2: 62.17453147 | U2: 65.37090677 | V2: 68.57344023 | W2: 71.78133885 | X2: 74.99393891 | Y2: 78.21068091 | Z2: 81.43109002 | AA2: 84.65476083 | AB2: 87.88134513 | AC2: 91.11054231 | AD2: 94.34209147 | AE2: 97.57576516 | AF2: 100.8113642 | AG2: 104.0487134 | AH2: 107.2876582 | AI2: 110.5280615 | AJ2: 113.7698016 | AK2: 117.0127697 | AL2: 120.2568687 | AM2: 123.5020112 | AN2: 126.7481187 | AO2: 129.9951203 | AP2: 133.2429519 | AQ2: 136.4915554 | AR2: 139.740878 | AS2: 142.9908713 | AT2: 146.2414916 | AU2: 149.4926985 | AV2: 152.7444554 | AW2: 155.9967282 | AX2: 159.2494859 | AY2: 162.5026999 | AZ2: 165.7563437 | BA2: 169.0103928 | BB2: 172.2648246 | BC2: 175.5196181 | BD2: 178.7747539 | BE2: 182.0302138 | BF2: 185.2859809 | BG2: 188.5420397 | BH2: 191.7983753 | BI2: 195.0549742 | BJ2: 198.3118235 | BK2: 201.5689112 | BL2: 204.8262261 | BM2: 208.0837577 | BN2: 211.341496 | BO2: 214.5994317 | BP2: 217.8575562 | BQ2: 221.1158611 | BR2: 224.3743387 | BS2: 227.6329816 | BT2: 230.8917829 | BU2: 234.1507361 | BV2: 237.409835 | BW2: 240.6690737 | BX2: 243.9284467 | BY2: 247.1879487 | BZ2: 250.4475747 | CA2: 253.70732 | CB2: 256.9671801 | CC2: 260.2271508 | CD2: 263.4872279 | CE2: 266.7474076 | CF2: 270.0076862 | CG2: 273.2680603 | CH2: 276.5285264 | CI2: 279.7890813 | CJ2: 283.0497221 | CK2: 286.3104459 | CL2: 289.5712497 | CM2: 292.8321311 | CN2: 296.0930874 | CO2: 299.3541162 | CP2: 302.6152153 | CQ2: 305.8763823 | CR2: 309.1376151 | CS2: 312.3989117 | CT2: 315.6602702 | CU2: 318.9216886 | CV2: 322.1831651 | CW2: 325.4446981
A3: 2 | B3: - | C3: - | D3: - | E3: - | F3: - | G3: - | H3: - | I3: 27.08273683 | J3: 30.03094743 | K3: 33.0282566 | L3: 36.06480451 | M3: 39.13298426 | N3: 42.22691367 | O3: 45.34201334 | P3: 48.47468656 | Q3: 51.62208134 | R3: 54.78191427 | S3: 57.95233985 | T3: 61.13185302 | U3: 64.31921584 | V3: 67.51340185 | W3: 70.71355353 | X3: 73.91894946 | Y3: 77.12897866 | Z3: 80.3431205 | AA3: 83.56092881 | AB3: 86.78201911 | AC3: 90.00605844 | AD3: 93.23275704 | AE3: 96.46186167 | AF3: 99.69315002 | AG3: 102.9264262 | AH3: 106.1615169 | AI3: 109.3982684 | AJ3: 112.6365436 | AK3: 115.8762201 | AL3: 119.1171883 | AM3: 122.3593496 | AN3: 125.602615 | AO3: 128.8469044 | AP3: 132.0921451 | AQ3: 135.338271 | AR3: 138.5852221 | AS3: 141.8329437 | AT3: 145.0813857 | AU3: 148.3305023 | AV3: 151.5802515 | AW3: 154.8305948 | AX3: 158.0814964 | AY3: 161.3329238 | AZ3: 164.5848467 | BA3: 167.837237 | BB3: 171.0900689 | BC3: 174.3433183 | BD3: 177.5969628 | BE3: 180.8509818 | BF3: 184.1053559 | BG3: 187.3600671 | BH3: 190.6150984 | BI3: 193.8704342 | BJ3: 197.1260598 | BK3: 200.3819614 | BL3: 203.6381259 | BM3: 206.8945415 | BN3: 210.1511965 | BO3: 213.4080803 | BP3: 216.6651827 | BQ3: 219.9224944 | BR3: 223.1800063 | BS3: 226.43771 | BT3: 229.6955974 | BU3: 232.9536611 | BV3: 236.2118938 | BW3: 239.4702888 | BX3: 242.7288398 | BY3: 245.9875405 | BZ3: 249.2463854 | CA3: 252.5053688 | CB3: 255.7644855 | CC3: 259.0237308 | CD3: 262.2830997 | CE3: 265.542588 | CF3: 268.8021912 | CG3: 272.0619054 | CH3: 275.3217267 | CI3: 278.5816513 | CJ3: 281.8416758 | CK3: 285.1017967 | CL3: 288.3620109 | CM3: 291.6223153 | CN3: 294.882707 | CO3: 298.143183 | CP3: 301.4037408 | CQ3: 304.6643777 | CR3: 307.9250913 | CS3: 311.1858792 | CT3: 314.4467391 | CU3: 317.7076689 | CV3: 320.9686663 | CW3: 324.2297295
A4: 3 | B4: - | C4: - | D4: - | E4: - | F4: - | G4: - | H4: 23.68255856 | I4: 26.52156339 | J4: 29.42518442 | K4: 32.38138862 | L4: 35.3804427 | M4: 38.414595 | N4: 41.47769665 | O4: 44.56486045 | P4: 47.67218209 | Q4: 50.79652158 | R4: 53.93533482 | S4: 57.08654477 | T4: 60.24844279 | U4: 63.41961293 | V4: 66.59887348 | W4: 69.78523154 | X4: 72.97784755 | Y4: 76.1760073 | Z4: 79.37909978 | AA4: 82.58659943 | AB4: 85.79805192 | AC4: 89.01306263 | AD4: 92.23128725 | AE4: 95.45242409 | AF4: 98.67620777 | AG4: 101.9024039 | AH4: 105.1308049 | AI4: 108.3612259 | AJ4: 111.5935024 | AK4: 114.8274867 | AL4: 118.0630468 | AM4: 121.3000634 | AN4: 124.5384292 | AO4: 127.778047 | AP4: 131.0188288 | AQ4: 134.2606945 | AR4: 137.5035711 | AS4: 140.7473922 | AT4: 143.9920969 | AU4: 147.2376294 | AV4: 150.4839386 | AW4: 153.7309774 | AX4: 156.9787025 | AY4: 160.2270739 | AZ4: 163.4760547 | BA4: 166.7256106 | BB4: 169.9757099 | BC4: 173.2263233 | BD4: 176.4774235 | BE4: 179.728985 | BF4: 182.980984 | BG4: 186.2333986 | BH4: 189.4862081 | BI4: 192.7393931 | BJ4: 195.9929356 | BK4: 199.2468188 | BL4: 202.5010266 | BM4: 205.7555442 | BN4: 209.0103576 | BO4: 212.2654536 | BP4: 215.5208198 | BQ4: 218.7764445 | BR4: 222.0323167 | BS4: 225.288426 | BT4: 228.5447625 | BU4: 231.8013169 | BV4: 235.0580804 | BW4: 238.3150448 | BX4: 241.572202 | BY4: 244.8295447 | BZ4: 248.0870656 | CA4: 251.3447581 | CB4: 254.6026158 | CC4: 257.8606324 | CD4: 261.1188024 | CE4: 264.37712 | CF4: 267.6355801 | CG4: 270.8941777 | CH4: 274.1529079 | CI4: 277.4117662 | CJ4: 280.6707482 | CK4: 283.9298498 | CL4: 287.1890671 | CM4: 290.4483961 | CN4: 293.7078333 | CO4: 296.9673752 | CP4: 300.2270184 | CQ4: 303.4867598 | CR4: 306.7465963 | CS4: 310.0065249 | CT4: 313.2665429 | CU4: 316.5266475 | CV4: 319.7868362 | CW4: 323.0471064
A5: 4 | B5: - | C5: - | D5: - | E5: - | F5: - | G5: - | H5: 23.47892077 | I5: 26.2472495 | J5: 29.0862697 | K5: 31.98381458 | L5: 34.9298004 | M5: 37.91600699 | N5: 40.93577749 | O5: 43.98372543 | P5: 47.05548122 | Q5: 50.14748423 | R5: 53.25681693 | S5: 56.38107417 | T5: 59.51826067 | U5: 62.6667108 | V5: 65.82502548 | W5: 68.99202258 | X5: 72.16669745 | Y5: 75.34819166 | Z5: 78.53576787 | AA5: 81.72878961 | AB5: 84.92670489 | AC5: 88.12903287 | AD5: 91.33535289 | AE5: 94.5452955 | AF5: 97.75853497 | AG5: 100.9747831 | AH5: 104.1937839 | AI5: 107.4153096 | AJ5: 110.6391564 | AK5: 113.8651419 | AL5: 117.093102 | AM5: 120.3228891 | AN5: 123.5543695 | AO5: 126.7874225 | AP5: 130.0219383 | AQ5: 133.2578172 | AR5: 136.4949682 | AS5: 139.7333082 | AT5: 142.9727611 | AU5: 146.2132573 | AV5: 149.4547327 | AW5: 152.6971284 | AX5: 155.94039 | AY5: 159.1844675 | AZ5: 162.4293144 | BA5: 165.6748879 | BB5: 168.9211481 | BC5: 172.1680581 | BD5: 175.4155836 | BE5: 178.6636925 | BF5: 181.9123551 | BG5: 185.1615434 | BH5: 188.4112316 | BI5: 191.6613953 | BJ5: 194.9120118 | BK5: 198.1630597 | BL5: 201.4145189 | BM5: 204.6663708 | BN5: 207.9185975 | BO5: 211.1711825 | BP5: 214.4241101 | BQ5: 217.6773656 | BR5: 220.9309349 | BS5: 224.1848051 | BT5: 227.4389635 | BU5: 230.6933984 | BV5: 233.9480989 | BW5: 237.2030541 | BX5: 240.4582543 | BY5: 243.7136899 | BZ5: 246.969352 | CA5: 250.2252319 | CB5: 253.4813216 | CC5: 256.7376133 | CD5: 259.9940997 | CE5: 263.2507739 | CF5: 266.507629 | CG5: 269.7646589 | CH5: 273.0218574 | CI5: 276.2792187 | CJ5: 279.5367373 | CK5: 282.794408 | CL5: 286.0522257 | CM5: 289.3101855 | CN5: 292.568283 | CO5: 295.8265135 | CP5: 299.084873 | CQ5: 302.3433574 | CR5: 305.6019627 | CS5: 308.8606853 | CT5: 312.1195216 | CU5: 315.3784681 | CV5: 318.6375216 | CW5: 321.8966789
A6: 5 | B6: - | C6: - | D6: - | E6: - | F6: - | G6: 20.94621928 | H6: 23.53780563 | I6: 26.22143646 | J6: 28.98282707 | K6: 31.80956568 | L6: 34.69116264 | M6: 37.61889193 | N6: 40.5855519 | O6: 43.58521559 | P6: 46.6130026 | Q6: 49.66488391 | R6: 52.73752049 | S6: 55.82813228 | T6: 58.93439298 | U6: 62.05434577 | V6: 65.186336 | W6: 68.32895721 | X6: 71.48100789 | Y6: 74.64145655 | Z6: 77.80941346 | AA6: 80.98410772 | AB6: 84.1648685 | AC6: 87.3511096 | AD6: 90.5423168 | AE6: 93.73803728 | AF6: 96.9378709 | AG6: 100.1414629 | AH6: 103.3484975 | AI6: 106.5586933 | AJ6: 109.771798 | AK6: 112.9875854 | AL6: 116.2058521 | AM6: 119.4264142 | AN6: 122.6491057 | AO6: 125.8737759 | AP6: 129.1002881 | AQ6: 132.3285177 | AR6: 135.5583509 | AS6: 138.7896839 | AT6: 142.0224214 | AU6: 145.2564761 | AV6: 148.4917677 | AW6: 151.7282223 | AX6: 154.9657716 | AY6: 158.2043528 | AZ6: 161.4439074 | BA6: 164.6843816 | BB6: 167.9257253 | BC6: 171.1678919 | BD6: 174.4108382 | BE6: 177.6545238 | BF6: 180.8989112 | BG6: 184.1439653 | BH6: 187.3896532 | BI6: 190.6359443 | BJ6: 193.8828099 | BK6: 197.130223 | BL6: 200.3781583 | BM6: 203.626592 | BN6: 206.8755017 | BO6: 210.1248666 | BP6: 213.3746666 | BQ6: 216.6248832 | BR6: 219.8754986 | BS6: 223.1264964 | BT6: 226.3778606 | BU6: 229.6295764 | BV6: 232.8816297 | BW6: 236.1340071 | BX6: 239.386696 | BY6: 242.6396845 | BZ6: 245.8929609 | CA6: 249.1465146 | CB6: 252.4003353 | CC6: 255.654413 | CD6: 258.9087386 | CE6: 262.1633031 | CF6: 265.4180981 | CG6: 268.6731155 | CH6: 271.9283477 | CI6: 275.1837872 | CJ6: 278.439427 | CK6: 281.6952605 | CL6: 284.9512813 | CM6: 288.2074832 | CN6: 291.4638603 | CO6: 294.7204071 | CP6: 297.9771182 | CQ6: 301.2339884 | CR6: 304.4910127 | CS6: 307.7481866 | CT6: 311.0055053 | CU6: 314.2629645 | CV6: 317.5205601 | CW6: 320.778288
A7: 6 | B7: - | C7: - | D7: - | E7: - | F7: 20.94621928 | G7: 21.31854122 | H7: 23.81324475 | I7: 26.40606956 | J7: 29.08306681 | K7: 31.83187994 | L7: 34.64183957 | M7: 37.50388158 | N7: 40.41037827 | O7: 43.35494108 | P7: 46.33222727 | Q7: 49.33776546 | R7: 52.36780529 | S7: 55.41919119 | T7: 58.48925805 | U7: 61.57574567 | V7: 64.67672901 | W7: 67.79056128 | X7: 70.91582759 | Y7: 74.05130704 | Z7: 77.19594173 | AA7: 80.34881124 | AB7: 83.50911164 | AC7: 86.67613808 | AD7: 89.84927035 | AE7: 93.02796079 | AF7: 96.2117242 | AG7: 99.40012936 | AH7: 102.5927918 | AI7: 105.7893679 | AJ7: 108.9895494 | AK7: 112.1930592 | AL7: 115.3996477 | AM7: 118.6090892 | AN7: 121.8211793 | AO7: 125.0357328 | AP7: 128.2525807 | AQ7: 131.4715693 | AR7: 134.6925582 | AS7: 137.9154188 | AT7: 141.1400333 | AU7: 144.3662935 | AV7: 147.5940998 | AW7: 150.8233604 | AX7: 154.0539907 | AY7: 157.2859124 | AZ7: 160.5190531 | BA7: 163.7533456 | BB7: 166.9887275 | BC7: 170.225141 | BD7: 173.462532 | BE7: 176.7008503 | BF7: 179.9400491 | BG7: 183.1800845 | BH7: 186.4209156 | BI7: 189.6625041 | BJ7: 192.904814 | BK7: 196.1478117 | BL7: 199.3914656 | BM7: 202.6357458 | BN7: 205.8806244 | BO7: 209.1260752 | BP7: 212.3720733 | BQ7: 215.6185952 | BR7: 218.8656189 | BS7: 222.1131236 | BT7: 225.3610894 | BU7: 228.6094978 | BV7: 231.8583309 | BW7: 235.1075722 | BX7: 238.3572057 | BY7: 241.6072162 | BZ7: 244.8575896 | CA7: 248.1083122 | CB7: 251.359371 | CC7: 254.6107539 | CD7: 257.862449 | CE7: 261.1144452 | CF7: 264.3667319 | CG7: 267.6192989 | CH7: 270.8721366 | CI7: 274.1252357 | CJ7: 277.3785875 | CK7: 280.6321835 | CL7: 283.8860156 | CM7: 287.1400761 | CN7: 290.3943577 | CO7: 293.6488533 | CP7: 296.9035561 | CQ7: 300.1584597 | CR7: 303.4135578 | CS7: 306.6688445 | CT7: 309.924314 | CU7: 313.1799608 | CV7: 316.4357798 | CW7: 319.6917658
A8: 7 | B8: - | C8: - | D8: 23.68255856 | E8: 23.47892077 | F8: 23.53780563 | G8: 23.81324475 | H8: 24.26434505 | I8: 26.76607894 | J8: 29.35686092 | K8: 32.02481177 | L8: 34.75941946 | M8: 37.55154795 | N8: 40.39334854 | O8: 43.27812498 | P8: 46.20018463 | Q8: 49.15469378 | R8: 52.13754601 | S8: 55.14524697 | T8: 58.17481592 | U8: 61.22370259 | V8: 64.28971777 | W8: 67.37097562 | X8: 70.46584571 | Y8: 73.57291332 | Z8: 76.69094639 | AA8: 79.81886817 | AB8: 82.95573431 | AC8: 86.10071376 | AD8: 89.2530728 | AE8: 92.41216156 | AF8: 95.57740265 | AG8: 98.74828159 | AH8: 101.9243386 | AI8: 105.1051618 | AJ8: 108.2903811 | AK8: 111.4796631 | AL8: 114.6727068 | AM8: 117.8692399 | AN8: 121.0690153 | AO8: 124.2718086 | AP8: 127.4774152 | AQ8: 130.6856484 | AR8: 133.8963376 | AS8: 137.1093264 | AT8: 140.3244714 | AU8: 143.5416406 | AV8: 146.7607127 | AW8: 149.9815756 | AX8: 153.2041258 | AY8: 156.4282676 | AZ8: 159.6539125 | BA8: 162.8809781 | BB8: 166.1093881 | BC8: 169.3390715 | BD8: 172.569962 | BE8: 175.8019981 | BF8: 179.0351221 | BG8: 182.2692803 | BH8: 185.5044223 | BI8: 188.740501 | BJ8: 191.9774722 | BK8: 195.2152945 | BL8: 198.4539288 | BM8: 201.6933387 | BN8: 204.9334895 | BO8: 208.174349 | BP8: 211.4158864 | BQ8: 214.658073 | BR8: 217.9008814 | BS8: 221.1442859 | BT8: 224.3882622 | BU8: 227.6327871 | BV8: 230.8778389 | BW8: 234.1233969 | BX8: 237.3694414 | BY8: 240.6159538 | BZ8: 243.8629164 | CA8: 247.1103124 | CB8: 250.3581257 | CC8: 253.6063413 | CD8: 256.8549446 | CE8: 260.1039217 | CF8: 263.3532596 | CG8: 266.6029456 | CH8: 269.8529679 | CI8: 273.1033149 | CJ8: 276.3539758 | CK8: 279.6049401 | CL8: 282.8561978 | CM8: 286.1077394 | CN8: 289.3595558 | CO8: 292.6116382 | CP8: 295.8639781 | CQ8: 299.1165676 | CR8: 302.369399 | CS8: 305.6224648 | CT8: 308.875758 | CU8: 312.1292718 | CV8: 315.3829996 | CW8: 318.6369351
A9: 8 | B9: 27.96555735 | C9: 27.08273683 | D9: 26.52156339 | E9: 26.2472495 | F9: 26.22143646 | G9: 26.40606956 | H9: 26.76607894 | I9: 27.27076956 | J9: 29.77700762 | K9: 32.36432673 | L9: 35.02269235 | M9: 37.74317144 | N9: 40.51792244 | O9: 43.34012524 | P9: 46.20388181 | Q9: 49.10410749 | R9: 52.03642419 | S9: 54.99706174 | T9: 57.98276985 | U9: 60.99074133 | V9: 64.01854616 | W9: 67.06407526 | X9: 70.12549291 | Y9: 73.20119661 | Z9: 76.28978317 | AA9: 79.39002019 | AB9: 82.50082201 | AC9: 85.62122935 | AD9: 88.75039215 | AE9: 91.88755491 | AF9: 95.03204438 | AG9: 98.18325893 | AH9: 101.3406595 | AI9: 104.5037621 | AJ9: 107.6721306 | AK9: 110.8453716 | AL9: 114.0231293 | AM9: 117.205081 | AN9: 120.3909336 | AO9: 123.5804203 | AP9: 126.7732976 | AQ9: 129.9693431 | AR9: 133.1683532 | AS9: 136.3701412 | AT9: 139.5745353 | AU9: 142.7813778 | AV9: 145.9905231 | AW9: 149.2018368 | AX9: 152.4151948 | AY9: 155.630482 | AZ9: 158.8475919 | BA9: 162.0664256 | BB9: 165.286891 | BC9: 168.5089025 | BD9: 171.7323805 | BE9: 174.9572504 | BF9: 178.1834428 | BG9: 181.4108928 | BH9: 184.6395394 | BI9: 187.8693258 | BJ9: 191.1001984 | BK9: 194.3321071 | BL9: 197.5650048 | BM9: 200.798847 | BN9: 204.0335921 | BO9: 207.2692007 | BP9: 210.5056358 | BQ9: 213.7428622 | BR9: 216.980847 | BS9: 220.2195589 | BT9: 223.4589682 | BU9: 226.699047 | BV9: 229.9397688 | BW9: 233.1811084 | BX9: 236.423042 | BY9: 239.6655469 | BZ9: 242.9086015 | CA9: 246.1521855 | CB9: 249.3962793 | CC9: 252.6408645 | CD9: 255.8859234 | CE9: 259.1314392 | CF9: 262.3773958 | CG9: 265.6237781 | CH9: 268.8705714 | CI9: 272.1177618 | CJ9: 275.3653359 | CK9: 278.6132811 | CL9: 281.8615852 | CM9: 285.1102365 | CN9: 288.3592239 | CO9: 291.6085368 | CP9: 294.8581648 | CQ9: 298.1080981 | CR9: 301.3583275 | CS9: 304.6088438 | CT9: 307.8596383 | CU9: 311.1107029 | CV9: 314.3620294 | CW9: 317.6136102
A10: 9 | B10: 30.93177141 | C10: 30.03094743 | D10: 29.42518442 | E10: 29.0862697 | F10: 28.98282707 | G10: 29.08306681 | H10: 29.35686092 | I10: 29.77700762 | J10: 30.31978719 | K10: 32.82890194 | L10: 35.41223032 | M10: 38.06127125 | N10: 40.76839709 | O10: 43.52684257 | P10: 46.33065392 | Q10: 49.17461778 | R10: 52.05418248 | S10: 54.96537952 | T10: 57.90474958 | U10: 60.86927534 | V10: 63.85632161 | W10: 66.86358303 | X10: 69.88903868 | Y10: 72.93091293 | Z10: 75.98764197 | AA10: 79.05784504 | AB10: 82.14029996 | AC10: 85.23392207 | AD10: 88.33774638 | AE10: 91.45091213 | AF10: 94.57264968 | AG10: 97.70226916 | AH10: 100.8391507 | AI10: 103.9827362 | AJ10: 107.1325218 | AK10: 110.2880517 | AL10: 113.4489129 | AM10: 116.6147302 | AN10: 119.785162 | AO10: 122.959897 | AP10: 126.1386507 | AQ10: 129.3211627 | AR10: 132.5071943 | AS10: 135.6965263 | AT10: 138.8889571 | AU10: 142.0843008 | AV10: 145.2823862 | AW10: 148.4830548 | AX10: 151.6861601 | AY10: 154.8915663 | AZ10: 158.0991474 | BA10: 161.3087862 | BB10: 164.520374 | BC10: 167.7338093 | BD10: 170.9489975 | BE10: 174.1658503 | BF10: 177.3842853 | BG10: 180.6042252 | BH10: 183.8255978 | BI10: 187.0483353 | BJ10: 190.2723741 | BK10: 193.4976545 | BL10: 196.7241203 | BM10: 199.9517187 | BN10: 203.1803999 | BO10: 206.4101171 | BP10: 209.6408259 | BQ10: 212.8724845 | BR10: 216.1050535 | BS10: 219.3384955 | BT10: 222.5727753 | BU10: 225.8078593 | BV10: 229.0437157 | BW10: 232.2803147 | BX10: 235.5176275 | BY10: 238.7556271 | BZ10: 241.9942877 | CA10: 245.2335849 | CB10: 248.4734953 | CC10: 251.7139968 | CD10: 254.9550682 | CE10: 258.1966893 | CF10: 261.4388411 | CG10: 264.6815051 | CH10: 267.9246639 | CI10: 271.1683007 | CJ10: 274.4123996 | CK10: 277.6569453 | CL10: 280.9019232 | CM10: 284.1473194 | CN10: 287.3931204 | CO10: 290.6393135 | CP10: 293.8858863 | CQ10: 297.1328271 | CR10: 300.3801245 | CS10: 303.6277678 | CT10: 306.8757465 | CU10: 310.1240506 | CV10: 313.3726706 | CW10: 316.6215971
A11: 10 | B11: 33.94759612 | C11: 33.0282566 | D11: 32.38138862 | E11: 31.98381458 | F11: 31.80956568 | G11: 31.83187994 | H11: 32.02481177 | I11: 32.36432673 | J11: 32.82890194 | K11: 33.39973516 | L11: 35.91067201 | M11: 38.48991545 | N11: 41.13021394 | O11: 43.82500907 | P11: 46.56842717 | Q11: 49.35524362 | R11: 52.18083218 | S11: 55.04110807 | T11: 57.93247 | U11: 60.8517446 | V11: 63.79613489 | W11: 66.76317363 | X11: 69.75068176 | Y11: 72.75673175 | Z11: 75.77961551 | AA11: 78.81781653 | AB11: 81.86998555 | AC11: 84.93491964 | AD11: 88.01154399 | AE11: 91.09889618 | AF11: 94.19611254 | AG11: 97.30241641 | AH11: 100.4171078 | AI11: 103.5395547 | AJ11: 106.669185 | AK11: 109.8054801 | AL11: 112.9479687 | AM11: 116.096222 | AN11: 119.249849 | AO11: 122.4084922 | AP11: 125.5718247 | AQ11: 128.7395469 | AR11: 131.9113836 | AS11: 135.0870816 | AT11: 138.266408 | AU11: 141.4491476 | AV11: 144.635102 | AW11: 147.8240874 | AX11: 151.0159336 | AY11: 154.2104828 | AZ11: 157.4075883 | BA11: 160.6071139 | BB11: 163.8089326 | BC11: 167.0129261 | BD11: 170.2189841 | BE11: 173.4270035 | BF11: 176.6368877 | BG11: 179.8485466 | BH11: 183.0618954 | BI11: 186.2768549 | BJ11: 189.4933506 | BK11: 192.7113124 | BL11: 195.9306744 | BM11: 199.1513747 | BN11: 202.3733548 | BO11: 205.5965596 | BP11: 208.8209371 | BQ11: 212.0464381 | BR11: 215.2730162 | BS11: 218.5006276 | BT11: 221.7292305 | BU11: 224.9587856 | BV11: 228.1892556 | BW11: 231.4206049 | BX11: 234.6528 | BY11: 237.8858089 | BZ11: 241.1196012 | CA11: 244.354148 | CB11: 247.5894219 | CC11: 250.8253966 | CD11: 254.0620472 | CE11: 257.2993499 | CF11: 260.537282 | CG11: 263.7758219 | CH11: 267.014949 | CI11: 270.2546434 | CJ11: 273.4948862 | CK11: 276.7356595 | CL11: 279.9769459 | CM11: 283.218729 | CN11: 286.4609929 | CO11: 289.7037223 | CP11: 292.9469029 | CQ11: 296.1905205 | CR11: 299.4345619 | CS11: 302.6790143 | CT11: 305.9238652 | CU11: 309.1691029 | CV11: 312.4147159 | CW11: 315.6606933
A12: 11 | B12: 37.00214811 | C12: 36.06480451 | D12: 35.3804427 | E12: 34.9298004 | F12: 34.69116264 | G12: 34.64183957 | H12: 34.75941946 | I12: 35.02269235 | J12: 35.41223032 | K12: 35.91067201 | L12: 36.50278501 | M12: 39.01485202 | N12: 41.59012471 | O12: 44.2223672 | P12: 46.90589757 | Q12: 49.63558237 | R12: 52.40681179 | S12: 55.21546352 | T12: 58.05786132 | U12: 60.93073204 | V12: 63.83116357 | W12: 66.75656522 | X12: 69.70463121 | Y12: 72.67330757 | Z12: 75.66076255 | AA12: 78.66536034 | AB12: 81.6856378 | AC12: 84.72028412 | AD12: 87.76812282 | AE12: 90.82809616 | AF12: 93.89925134 | AG12: 96.98072851 | AH12: 100.0717503 | AI12: 103.1716126 | AJ12: 106.2796764 | AK12: 109.3953609 | AL12: 112.5181371 | AM12: 115.6475225 | AN12: 118.7830762 | AO12: 121.9243946 | AP12: 125.0711076 | AQ12: 128.2228756 | AR12: 131.3793861 | AS12: 134.5403514 | AT12: 137.705506 | AU12: 140.8746048 | AV12: 144.0474211 | AW12: 147.2237449 | AX12: 150.4033815 | AY12: 153.58615 | AZ12: 156.7718824 | BA12: 159.9604221 | BB12: 163.1516235 | BC12: 166.3453505 | BD12: 169.541476 | BE12: 172.7398814 | BF12: 175.9404555 | BG12: 179.1430942 | BH12: 182.3476998 | BI12: 185.5541807 | BJ12: 188.7624509 | BK12: 191.9724294 | BL12: 195.1840399 | BM12: 198.3972108 | BN12: 201.6118742 | BO12: 204.8279665 | BP12: 208.0454273 | BQ12: 211.2641996 | BR12: 214.4842296 | BS12: 217.7054663 | BT12: 220.9278614 | BU12: 224.151369 | BV12: 227.3759459 | BW12: 230.6015508 | BX12: 233.8281446 | BY12: 237.0556901 | BZ12: 240.284152 | CA12: 243.5134967 | CB12: 246.7436921 | CC12: 249.9747077 | CD12: 253.2065145 | CE12: 256.4390849 | CF12: 259.6723922 | CG12: 262.9064114 | CH12: 266.1411182 | CI12: 269.3764897 | CJ12: 272.6125038 | CK12: 275.8491395 | CL12: 279.0863766 | CM12: 282.3241958 | CN12: 285.5625786 | CO12: 288.8015073 | CP12: 292.0409649 | CQ12: 295.2809352 | CR12: 298.5214024 | CS12: 301.7623516 | CT12: 305.0037684 | CU12: 308.245639 | CV12: 311.4879499 | CW12: 314.7306885
A13: 12 | B13: 40.08735376 | C13: 39.13298426 | D13: 38.414595 | E13: 37.91600699 | F13: 37.61889193 | G13: 37.50388158 | H13: 37.55154795 | I13: 37.74317144 | J13: 38.06127125 | K13: 38.48991545 | L13: 39.01485202 | M13: 39.62350955 | N13: 42.13624667 | O13: 44.70775761 | P13: 47.33263574 | Q13: 50.00592137 | R13: 52.72309854 | S13: 55.48007779 | T13: 58.27317021 | U13: 61.09905703 | V13: 63.95475755 | W13: 66.83759712 | X13: 69.74517647 | Y13: 72.67534301 | Z13: 75.62616443 | AA13: 78.59590474 | AB13: 81.58300268 | AC13: 84.5860524 | AD13: 87.60378633 | AE13: 90.63505989 | AF13: 93.67883802 | AG13: 96.73418323 | AH13: 99.80024506 | AI13: 102.8762508 | AJ13: 105.9614971 | AK13: 109.0553431 | AL13: 112.1572034 | AM13: 115.266543 | AN13: 118.3828719 | AO13: 121.5057404 | AP13: 124.6347359 | AQ13: 127.7694784 | AR13: 130.9096181 | AS13: 134.0548324 | AT13: 137.2048231 | AU13: 140.3593144 | AV13: 143.518051 | AW13: 146.6807961 | AX13: 149.8473297 | AY13: 153.0174476 | AZ13: 156.1909596 | BA13: 159.3676882 | BB13: 162.5474684 | BC13: 165.7301458 | BD13: 168.915576 | BE13: 172.1036241 | BF13: 175.2941636 | BG13: 178.4870761 | BH13: 181.6822502 | BI13: 184.8795815 | BJ13: 188.0789718 | BK13: 191.2803287 | BL13: 194.4835651 | BM13: 197.688599 | BN13: 200.895353 | BO13: 204.1037541 | BP13: 207.3137332 | BQ13: 210.5252252 | BR13: 213.7381682 | BS13: 216.9525039 | BT13: 220.1681768 | BU13: 223.3851345 | BV13: 226.603327 | BW13: 229.8227072 | BX13: 233.0432301 | BY13: 236.2648529 | BZ13: 239.4875351 | CA13: 242.711238 | CB13: 245.9359247 | CC13: 249.1615602 | CD13: 252.3881111 | CE13: 255.6155454 | CF13: 258.8438326 | CG13: 262.0729438 | CH13: 265.3028511 | CI13: 268.533528 | CJ13: 271.7649491 | CK13: 274.9970901 | CL13: 278.2299278 | CM13: 281.4634399 | CN13: 284.697605 | CO13: 287.9324028 | CP13: 291.1678136 | CQ13: 294.4038185 | CR13: 297.6403997 | CS13: 300.8775397 | CT13: 304.1152218 | CU13: 307.3534301 | CV13: 310.5921493 | CW13: 313.8313645
A14: 13 | B14: 43.19715164 | C14: 42.22691367 | D14: 41.47769665 | E14: 40.93577749 | F14: 40.5855519 | G14: 40.41037827 | H14: 40.39334854 | I14: 40.51792244 | J14: 40.76839709 | K14: 41.13021394 | L14: 41.59012471 | M14: 42.13624667 | N14: 42.75803895 | O14: 45.27113678 | P14: 47.83913166 | Q14: 50.45729897 | R14: 53.12127834 | S14: 55.82707208 | T14: 58.5710332 | U14: 61.34984661 | V14: 64.16050666 | W14: 67.00029296 | X14: 69.86674583 | Y14: 72.75764244 | Z14: 75.67097411 | AA14: 78.6049252 | AB14: 81.5578536 | AC14: 84.528273 | AD14: 87.51483687 | AE14: 90.51632395 | AF14: 93.53162533 | AG14: 96.55973283 | AH14: 99.59972864 | AI14: 102.6507761 | AJ14: 105.7121116 | AK14: 108.7830369 | AL14: 111.862913 | AM14: 114.9511542 | AN14: 118.0472228 | AO14: 121.1506246 | AP14: 124.2609048 | AQ14: 127.377644 | AR14: 130.5004556 | AS14: 133.6289819 | AT14: 136.7628923 | AU14: 139.9018804 | AV14: 143.0456621 | AW14: 146.1939735 | AX14: 149.3465693 | AY14: 152.5032213 | AZ14: 155.6637168 | BA14: 158.8278575 | BB14: 161.9954581 | BC14: 165.1663455 | BD14: 168.3403578 | BE14: 171.5173432 | BF14: 174.6971597 | BG14: 177.8796738 | BH14: 181.0647602 | BI14: 184.2523012 | BJ14: 187.442186 | BK14: 190.6343103 | BL14: 193.8285758 | BM14: 197.0248898 | BN14: 200.2231648 | BO14: 203.4233182 | BP14: 206.6252718 | BQ14: 209.8289517 | BR14: 213.0342881 | BS14: 216.2412147 | BT14: 219.4496685 | BU14: 222.6595901 | BV14: 225.870923 | BW14: 229.0836133 | BX14: 232.29761 | BY14: 235.5128647 | BZ14: 238.7293311 | CA14: 241.9469652 | CB14: 245.1657252 | CC14: 248.3855711 | CD14: 251.6064649 | CE14: 254.8283702 | CF14: 258.0512523 | CG14: 261.2750781 | CH14: 264.499816 | CI14: 267.7254357 | CJ14: 270.9519083 | CK14: 274.1792059 | CL14: 277.4073022 | CM14: 280.6361717 | CN14: 283.86579 | CO14: 287.0961339 | CP14: 290.3271808 | CQ14: 293.5589094 | CR14: 296.791299 | CS14: 300.0243298 | CT14: 303.2579828 | CU14: 306.4922397 | CV14: 309.727083 | CW14: 312.9624956
A15: 14 | B15: 46.32692995 | C15: 45.34201334 | D15: 44.56486045 | E15: 43.98372543 | F15: 43.58521559 | G15: 43.35494108 | H15: 43.27812498 | I15: 43.34012524 | J15: 43.52684257 | K15: 43.82500907 | L15: 44.2223672 | M15: 44.70775761 | N15: 45.27113678 | O15: 45.90354531 | P15: 48.41679393 | Q15: 50.98152542 | R15: 53.5935807 | S15: 56.24910055 | T15: 58.94452519 | U15: 61.67658581 | V15: 64.44229092 | W15: 67.23890963 | X15: 70.06395319 | Y15: 72.91515611 | Z15: 75.7904574 | AA15: 78.68798261 | AB15: 81.60602675 | AC15: 84.54303847 | AD15: 87.49760542 | AE15: 90.46844089 | AF15: 93.45437162 | AG15: 96.45432677 | AH15: 99.467328 | AI15: 102.4924805 | AJ15: 105.5289647 | AK15: 108.5760296 | AL15: 111.6329855 | AM15: 114.6991988 | AN15: 117.7740866 | AO15: 120.8571116 | AP15: 123.9477786 | AQ15: 127.0456299 | AR15: 130.1502427 | AS15: 133.2612255 | AT15: 136.3782154 | AU15: 139.5008758 | AV15: 142.628894 | AW15: 145.7619793 | AX15: 148.8998612 | AY15: 152.0422873 | AZ15: 155.1890225 | BA15: 158.339847 | BB15: 161.4945557 | BC15: 164.6529564 | BD15: 167.8148691 | BE15: 170.9801254 | BF15: 174.1485669 | BG15: 177.3200451 | BH15: 180.4944204 | BI15: 183.6715614 | BJ15: 186.8513445 | BK15: 190.0336531 | BL15: 193.2183773 | BM15: 196.4054136 | BN15: 199.5946639 | BO15: 202.7860358 | BP15: 205.9794416 | BQ15: 209.1747986 | BR15: 212.3720282 | BS15: 215.5710562 | BT15: 218.7718119 | BU15: 221.9742286 | BV15: 225.1782425 | BW15: 228.3837933 | BX15: 231.5908237 | BY15: 234.7992789 | BZ15: 238.009107 | CA15: 241.2202584 | CB15: 244.4326861 | CC15: 247.6463449 | CD15: 250.8611919 | CE15: 254.0771863 | CF15: 257.2942888 | CG15: 260.5124621 | CH15: 263.7316705 | CI15: 266.9518797 | CJ15: 270.1730572 | CK15: 273.3951715 | CL15: 276.6181928 | CM15: 279.8420922 | CN15: 283.0668423 | CO15: 286.2924167 | CP15: 289.5187901 | CQ15: 292.7459381 | CR15: 295.9738374 | CS15: 299.2024656 | CT15: 302.4318012 | CU15: 305.6618235 | CV15: 308.8925125 | CW15: 312.1238491
... 17 more rows
